{"text_format":"1","workbook":"xlsx","n_sheets":2,"sheets":["StreetLightingBracket","Lookups"],"not_rendered":{"charts":0,"images":0,"macros":0,"external_links":0,"defined_names":22,"comments":0,"pivot_tables":0},"unopened":[],"bounds":{"document_bytes":16777216,"sheet_cells":100000,"rows_first":2000,"rows_last":500,"rows_between":2000,"halvings":0,"cell_chars":16384,"cell_head_chars":4096},"cells_cut":0,"cells_raw":0,"read":"whole","date_system":"1900"}

{"sheet":"StreetLightingBracket","index":0,"n_rows":100,"n_cols":31,"rows_kept":100,"cut":false,"hidden":false,"merged":[]}
["15f221f1-c15e-4d8e-a679-81fade5c4405_road_id","sh-rs-d","15f221f1-c15e-4d8e-a679-81fade5c4404_start_m","ca761e13-b73d-4c53-ad17-4ca7741b0a9c_bracket_type_desc","ca761e13-b73d-4c53-ad17-4ca7741b0a9c_bracket_type","83877345-886b-44dd-8af8-e245f6bafe3b_bracket_angle","dd862500-0253-4c64-bdc3-739a5cb92542_bracket_height","f2dea7f2-443e-4f2f-9317-29cef00edcaa_height_ind_desc","f2dea7f2-443e-4f2f-9317-29cef00edcaa_height_ind","0d3f2d72-9aea-4195-b513-708e3b62960f_outreach","88097a04-086e-45ba-bfa3-cbb6f9e00fd8_install_date","a24b789f-107e-4595-bdfe-c1fed6d33a1b_in_replace_reason_desc","a24b789f-107e-4595-bdfe-c1fed6d33a1b_in_replace_reason","ca34d519-cbe9-4354-9338-a8b5902b2ae6_bracket_status_desc","ca34d519-cbe9-4354-9338-a8b5902b2ae6_bracket_status","dca153fd-d895-4224-8b3c-aaab1ea3f291_risk_likelihood_desc","dca153fd-d895-4224-8b3c-aaab1ea3f291_risk_likelihood","784e9765-954b-49d4-918e-aecc2cd92330_risk_consequence_desc","784e9765-954b-49d4-918e-aecc2cd92330_risk_consequence","9b8aa8a8-cfc7-4600-aedf-4ad7e8df4def_risk_desc","9b8aa8a8-cfc7-4600-aedf-4ad7e8df4def_risk","b9e4c706-b999-419b-9a47-e770d7fa7269_rul_reset_desc","b9e4c706-b999-419b-9a47-e770d7fa7269_rul_reset","251bff24-8f90-4805-9f14-ed68a3175c6e_use_default_rc_desc","251bff24-8f90-4805-9f14-ed68a3175c6e_use_default_rc","78b9fd5e-4538-4390-9d44-62f184f4e271_condition_desc","78b9fd5e-4538-4390-9d44-62f184f4e271_condition","e02d7411-e69d-4e09-b87d-9af4e8a89ba3_condition_date","285da367-69f7-4372-9627-1c705f1e2668_collect_name_desc","285da367-69f7-4372-9627-1c705f1e2668_collect_name","8ae94839-3a49-42b5-8dcc-c0033fa790b8_notes"]
["road_id","sh-rs-d","start_m","bracket_type_desc","bracket_type","bracket_angle","bracket_height","height_ind_desc","height_ind","outreach","install_date","in_replace_reason_desc","in_replace_reason","bracket_status_desc","bracket_status","risk_likelihood_desc","risk_likelihood","risk_consequence_desc","risk_consequence","risk_desc","risk","rul_reset_desc","rul_reset","use_default_rc_desc","use_default_rc","condition_desc","condition","condition_date","collect_name_desc","collect_name","notes"]
["Road Id [Location from Pole]","SH-RS-D (e.g. 016-0000-B) [Location from Pole] letter must be uppercase and include leading 0","Start (m) [Location from Pole]","Type Desc","Type","Angle","Height","Height Indicator Desc","Height Indicator","Outreach","Install Date (dd/mm/yyyy) Must include leading 0","Install Reason Desc","Install Reason","Status Desc","Status","Likelihood Desc","Likelihood","Consequence Desc","Consequence","Risk Desc","Risk","RUL Reset Desc","RUL Reset","Use Default Desc","Use Default","Condition Desc","Condition","Condition Date (dd/mm/yyyy) Must include leading 0","Organisation Desc","Organisation","Notes"]
[{"$f":"_xlfn.FILTERXML(_xlfn.WEBSERVICE(\"https://nds-beta.mobileroad.org/xy_sh?rp=\"&B4&\"/\"&C4&\"&xml=true\"),\"/lrms/id_road\")","v":"null"},null,null,null,{"$f":"IF(D4=\"\",\"\",VLOOKUP(D4,bracket_type[],2,FALSE))","v":""},null,null,null,{"$f":"IF(H4=\"\",\"\",VLOOKUP(H4,height_indicator[],2,FALSE))","v":""},null,null,null,{"$f":"IF(L4=\"\",\"\",VLOOKUP(L4,Install_reason[],2,FALSE))","v":""},null,{"$f":"IF(N4=\"\",\"\",VLOOKUP(N4,Status[],2,FALSE))","v":""},null,{"$f":"IF(P4=\"\",\"\",VLOOKUP(P4,risk_likelihood[],2,FALSE))","v":""},null,{"$f":"IF(R4=\"\",\"\",VLOOKUP(R4,risk_consequence[],2,FALSE))","v":""},null,{"$f":"IF(T4=\"\",\"\",VLOOKUP(T4,risk[],2,FALSE))","v":""},null,{"$f":"IF(V4=\"\",\"\",VLOOKUP(V4,rul_reset[],2,FALSE))","v":""},null,{"$f":"IF(X4=\"\",\"\",VLOOKUP(X4,use_default_rc[],2,FALSE))","v":""},null,{"$f":"IF(Z4=\"\",\"\",VLOOKUP(Z4,condition[],2,FALSE))","v":""},null,null,{"$f":"IF(AC4=\"\",\"\",VLOOKUP(AC4,Organisation[],2,FALSE))","v":""}]
[{"$f":"_xlfn.FILTERXML(_xlfn.WEBSERVICE(\"https://nds-beta.mobileroad.org/xy_sh?rp=\"&B5&\"/\"&C5&\"&xml=true\"),\"/lrms/id_road\")","v":"null"},null,null,null,{"$f":"IF(D5=\"\",\"\",VLOOKUP(D5,bracket_type[],2,FALSE))","v":""},null,null,null,{"$f":"IF(H5=\"\",\"\",VLOOKUP(H5,height_indicator[],2,FALSE))","v":""},null,null,null,{"$f":"IF(L5=\"\",\"\",VLOOKUP(L5,Install_reason[],2,FALSE))","v":""},null,{"$f":"IF(N5=\"\",\"\",VLOOKUP(N5,Status[],2,FALSE))","v":""},null,{"$f":"IF(P5=\"\",\"\",VLOOKUP(P5,risk_likelihood[],2,FALSE))","v":""},null,{"$f":"IF(R5=\"\",\"\",VLOOKUP(R5,risk_consequence[],2,FALSE))","v":""},null,{"$f":"IF(T5=\"\",\"\",VLOOKUP(T5,risk[],2,FALSE))","v":""},null,{"$f":"IF(V5=\"\",\"\",VLOOKUP(V5,rul_reset[],2,FALSE))","v":""},null,{"$f":"IF(X5=\"\",\"\",VLOOKUP(X5,use_default_rc[],2,FALSE))","v":""},null,{"$f":"IF(Z5=\"\",\"\",VLOOKUP(Z5,condition[],2,FALSE))","v":""},null,null,{"$f":"IF(AC5=\"\",\"\",VLOOKUP(AC5,Organisation[],2,FALSE))","v":""}]
["null",null,null,null,{"$f":"IF(D6=\"\",\"\",VLOOKUP(D6,bracket_type[],2,FALSE))","v":""},null,null,null,{"$f":"IF(H6=\"\",\"\",VLOOKUP(H6,height_indicator[],2,FALSE))","v":""},null,null,null,{"$f":"IF(L6=\"\",\"\",VLOOKUP(L6,Install_reason[],2,FALSE))","v":""},null,{"$f":"IF(N6=\"\",\"\",VLOOKUP(N6,Status[],2,FALSE))","v":""},null,{"$f":"IF(P6=\"\",\"\",VLOOKUP(P6,risk_likelihood[],2,FALSE))","v":""},null,{"$f":"IF(R6=\"\",\"\",VLOOKUP(R6,risk_consequence[],2,FALSE))","v":""},null,{"$f":"IF(T6=\"\",\"\",VLOOKUP(T6,risk[],2,FALSE))","v":""},null,{"$f":"IF(V6=\"\",\"\",VLOOKUP(V6,rul_reset[],2,FALSE))","v":""},null,{"$f":"IF(X6=\"\",\"\",VLOOKUP(X6,use_default_rc[],2,FALSE))","v":""},null,{"$f":"IF(Z6=\"\",\"\",VLOOKUP(Z6,condition[],2,FALSE))","v":""},null,null,{"$f":"IF(AC6=\"\",\"\",VLOOKUP(AC6,Organisation[],2,FALSE))","v":""}]
["null",null,null,null,{"$f":"IF(D7=\"\",\"\",VLOOKUP(D7,bracket_type[],2,FALSE))","v":""},null,null,null,{"$f":"IF(H7=\"\",\"\",VLOOKUP(H7,height_indicator[],2,FALSE))","v":""},null,null,null,{"$f":"IF(L7=\"\",\"\",VLOOKUP(L7,Install_reason[],2,FALSE))","v":""},null,{"$f":"IF(N7=\"\",\"\",VLOOKUP(N7,Status[],2,FALSE))","v":""},null,{"$f":"IF(P7=\"\",\"\",VLOOKUP(P7,risk_likelihood[],2,FALSE))","v":""},null,{"$f":"IF(R7=\"\",\"\",VLOOKUP(R7,risk_consequence[],2,FALSE))","v":""},null,{"$f":"IF(T7=\"\",\"\",VLOOKUP(T7,risk[],2,FALSE))","v":""},null,{"$f":"IF(V7=\"\",\"\",VLOOKUP(V7,rul_reset[],2,FALSE))","v":""},null,{"$f":"IF(X7=\"\",\"\",VLOOKUP(X7,use_default_rc[],2,FALSE))","v":""},null,{"$f":"IF(Z7=\"\",\"\",VLOOKUP(Z7,condition[],2,FALSE))","v":""},null,null,{"$f":"IF(AC7=\"\",\"\",VLOOKUP(AC7,Organisation[],2,FALSE))","v":""}]
["null",null,null,null,{"$f":"IF(D8=\"\",\"\",VLOOKUP(D8,bracket_type[],2,FALSE))","v":""},null,null,null,{"$f":"IF(H8=\"\",\"\",VLOOKUP(H8,height_indicator[],2,FALSE))","v":""},null,null,null,{"$f":"IF(L8=\"\",\"\",VLOOKUP(L8,Install_reason[],2,FALSE))","v":""},null,{"$f":"IF(N8=\"\",\"\",VLOOKUP(N8,Status[],2,FALSE))","v":""},null,{"$f":"IF(P8=\"\",\"\",VLOOKUP(P8,risk_likelihood[],2,FALSE))","v":""},null,{"$f":"IF(R8=\"\",\"\",VLOOKUP(R8,risk_consequence[],2,FALSE))","v":""},null,{"$f":"IF(T8=\"\",\"\",VLOOKUP(T8,risk[],2,FALSE))","v":""},null,{"$f":"IF(V8=\"\",\"\",VLOOKUP(V8,rul_reset[],2,FALSE))","v":""},null,{"$f":"IF(X8=\"\",\"\",VLOOKUP(X8,use_default_rc[],2,FALSE))","v":""},null,{"$f":"IF(Z8=\"\",\"\",VLOOKUP(Z8,condition[],2,FALSE))","v":""},null,null,{"$f":"IF(AC8=\"\",\"\",VLOOKUP(AC8,Organisation[],2,FALSE))","v":""}]
["null",null,null,null,{"$f":"IF(D9=\"\",\"\",VLOOKUP(D9,bracket_type[],2,FALSE))","v":""},null,null,null,{"$f":"IF(H9=\"\",\"\",VLOOKUP(H9,height_indicator[],2,FALSE))","v":""},null,null,null,{"$f":"IF(L9=\"\",\"\",VLOOKUP(L9,Install_reason[],2,FALSE))","v":""},null,{"$f":"IF(N9=\"\",\"\",VLOOKUP(N9,Status[],2,FALSE))","v":""},null,{"$f":"IF(P9=\"\",\"\",VLOOKUP(P9,risk_likelihood[],2,FALSE))","v":""},null,{"$f":"IF(R9=\"\",\"\",VLOOKUP(R9,risk_consequence[],2,FALSE))","v":""},null,{"$f":"IF(T9=\"\",\"\",VLOOKUP(T9,risk[],2,FALSE))","v":""},null,{"$f":"IF(V9=\"\",\"\",VLOOKUP(V9,rul_reset[],2,FALSE))","v":""},null,{"$f":"IF(X9=\"\",\"\",VLOOKUP(X9,use_default_rc[],2,FALSE))","v":""},null,{"$f":"IF(Z9=\"\",\"\",VLOOKUP(Z9,condition[],2,FALSE))","v":""},null,null,{"$f":"IF(AC9=\"\",\"\",VLOOKUP(AC9,Organisation[],2,FALSE))","v":""}]
["null",null,null,null,{"$f":"IF(D10=\"\",\"\",VLOOKUP(D10,bracket_type[],2,FALSE))","v":""},null,null,null,{"$f":"IF(H10=\"\",\"\",VLOOKUP(H10,height_indicator[],2,FALSE))","v":""},null,null,null,{"$f":"IF(L10=\"\",\"\",VLOOKUP(L10,Install_reason[],2,FALSE))","v":""},null,{"$f":"IF(N10=\"\",\"\",VLOOKUP(N10,Status[],2,FALSE))","v":""},null,{"$f":"IF(P10=\"\",\"\",VLOOKUP(P10,risk_likelihood[],2,FALSE))","v":""},null,{"$f":"IF(R10=\"\",\"\",VLOOKUP(R10,risk_consequence[],2,FALSE))","v":""},null,{"$f":"IF(T10=\"\",\"\",VLOOKUP(T10,risk[],2,FALSE))","v":""},null,{"$f":"IF(V10=\"\",\"\",VLOOKUP(V10,rul_reset[],2,FALSE))","v":""},null,{"$f":"IF(X10=\"\",\"\",VLOOKUP(X10,use_default_rc[],2,FALSE))","v":""},null,{"$f":"IF(Z10=\"\",\"\",VLOOKUP(Z10,condition[],2,FALSE))","v":""},null,null,{"$f":"IF(AC10=\"\",\"\",VLOOKUP(AC10,Organisation[],2,FALSE))","v":""}]
["null",null,null,null,{"$f":"IF(D11=\"\",\"\",VLOOKUP(D11,bracket_type[],2,FALSE))","v":""},null,null,null,{"$f":"IF(H11=\"\",\"\",VLOOKUP(H11,height_indicator[],2,FALSE))","v":""},null,null,null,{"$f":"IF(L11=\"\",\"\",VLOOKUP(L11,Install_reason[],2,FALSE))","v":""},null,{"$f":"IF(N11=\"\",\"\",VLOOKUP(N11,Status[],2,FALSE))","v":""},null,{"$f":"IF(P11=\"\",\"\",VLOOKUP(P11,risk_likelihood[],2,FALSE))","v":""},null,{"$f":"IF(R11=\"\",\"\",VLOOKUP(R11,risk_consequence[],2,FALSE))","v":""},null,{"$f":"IF(T11=\"\",\"\",VLOOKUP(T11,risk[],2,FALSE))","v":""},null,{"$f":"IF(V11=\"\",\"\",VLOOKUP(V11,rul_reset[],2,FALSE))","v":""},null,{"$f":"IF(X11=\"\",\"\",VLOOKUP(X11,use_default_rc[],2,FALSE))","v":""},null,{"$f":"IF(Z11=\"\",\"\",VLOOKUP(Z11,condition[],2,FALSE))","v":""},null,null,{"$f":"IF(AC11=\"\",\"\",VLOOKUP(AC11,Organisation[],2,FALSE))","v":""}]
["null",null,null,null,{"$f":"IF(D12=\"\",\"\",VLOOKUP(D12,bracket_type[],2,FALSE))","v":""},null,null,null,{"$f":"IF(H12=\"\",\"\",VLOOKUP(H12,height_indicator[],2,FALSE))","v":""},null,null,null,{"$f":"IF(L12=\"\",\"\",VLOOKUP(L12,Install_reason[],2,FALSE))","v":""},null,{"$f":"IF(N12=\"\",\"\",VLOOKUP(N12,Status[],2,FALSE))","v":""},null,{"$f":"IF(P12=\"\",\"\",VLOOKUP(P12,risk_likelihood[],2,FALSE))","v":""},null,{"$f":"IF(R12=\"\",\"\",VLOOKUP(R12,risk_consequence[],2,FALSE))","v":""},null,{"$f":"IF(T12=\"\",\"\",VLOOKUP(T12,risk[],2,FALSE))","v":""},null,{"$f":"IF(V12=\"\",\"\",VLOOKUP(V12,rul_reset[],2,FALSE))","v":""},null,{"$f":"IF(X12=\"\",\"\",VLOOKUP(X12,use_default_rc[],2,FALSE))","v":""},null,{"$f":"IF(Z12=\"\",\"\",VLOOKUP(Z12,condition[],2,FALSE))","v":""},null,null,{"$f":"IF(AC12=\"\",\"\",VLOOKUP(AC12,Organisation[],2,FALSE))","v":""}]
["null",null,null,null,{"$f":"IF(D13=\"\",\"\",VLOOKUP(D13,bracket_type[],2,FALSE))","v":""},null,null,null,{"$f":"IF(H13=\"\",\"\",VLOOKUP(H13,height_indicator[],2,FALSE))","v":""},null,null,null,{"$f":"IF(L13=\"\",\"\",VLOOKUP(L13,Install_reason[],2,FALSE))","v":""},null,{"$f":"IF(N13=\"\",\"\",VLOOKUP(N13,Status[],2,FALSE))","v":""},null,{"$f":"IF(P13=\"\",\"\",VLOOKUP(P13,risk_likelihood[],2,FALSE))","v":""},null,{"$f":"IF(R13=\"\",\"\",VLOOKUP(R13,risk_consequence[],2,FALSE))","v":""},null,{"$f":"IF(T13=\"\",\"\",VLOOKUP(T13,risk[],2,FALSE))","v":""},null,{"$f":"IF(V13=\"\",\"\",VLOOKUP(V13,rul_reset[],2,FALSE))","v":""},null,{"$f":"IF(X13=\"\",\"\",VLOOKUP(X13,use_default_rc[],2,FALSE))","v":""},null,{"$f":"IF(Z13=\"\",\"\",VLOOKUP(Z13,condition[],2,FALSE))","v":""},null,null,{"$f":"IF(AC13=\"\",\"\",VLOOKUP(AC13,Organisation[],2,FALSE))","v":""}]
["null",null,null,null,{"$f":"IF(D14=\"\",\"\",VLOOKUP(D14,bracket_type[],2,FALSE))","v":""},null,null,null,{"$f":"IF(H14=\"\",\"\",VLOOKUP(H14,height_indicator[],2,FALSE))","v":""},null,null,null,{"$f":"IF(L14=\"\",\"\",VLOOKUP(L14,Install_reason[],2,FALSE))","v":""},null,{"$f":"IF(N14=\"\",\"\",VLOOKUP(N14,Status[],2,FALSE))","v":""},null,{"$f":"IF(P14=\"\",\"\",VLOOKUP(P14,risk_likelihood[],2,FALSE))","v":""},null,{"$f":"IF(R14=\"\",\"\",VLOOKUP(R14,risk_consequence[],2,FALSE))","v":""},null,{"$f":"IF(T14=\"\",\"\",VLOOKUP(T14,risk[],2,FALSE))","v":""},null,{"$f":"IF(V14=\"\",\"\",VLOOKUP(V14,rul_reset[],2,FALSE))","v":""},null,{"$f":"IF(X14=\"\",\"\",VLOOKUP(X14,use_default_rc[],2,FALSE))","v":""},null,{"$f":"IF(Z14=\"\",\"\",VLOOKUP(Z14,condition[],2,FALSE))","v":""},null,null,{"$f":"IF(AC14=\"\",\"\",VLOOKUP(AC14,Organisation[],2,FALSE))","v":""}]
["null",null,null,null,{"$f":"IF(D15=\"\",\"\",VLOOKUP(D15,bracket_type[],2,FALSE))","v":""},null,null,null,{"$f":"IF(H15=\"\",\"\",VLOOKUP(H15,height_indicator[],2,FALSE))","v":""},null,null,null,{"$f":"IF(L15=\"\",\"\",VLOOKUP(L15,Install_reason[],2,FALSE))","v":""},null,{"$f":"IF(N15=\"\",\"\",VLOOKUP(N15,Status[],2,FALSE))","v":""},null,{"$f":"IF(P15=\"\",\"\",VLOOKUP(P15,risk_likelihood[],2,FALSE))","v":""},null,{"$f":"IF(R15=\"\",\"\",VLOOKUP(R15,risk_consequence[],2,FALSE))","v":""},null,{"$f":"IF(T15=\"\",\"\",VLOOKUP(T15,risk[],2,FALSE))","v":""},null,{"$f":"IF(V15=\"\",\"\",VLOOKUP(V15,rul_reset[],2,FALSE))","v":""},null,{"$f":"IF(X15=\"\",\"\",VLOOKUP(X15,use_default_rc[],2,FALSE))","v":""},null,{"$f":"IF(Z15=\"\",\"\",VLOOKUP(Z15,condition[],2,FALSE))","v":""},null,null,{"$f":"IF(AC15=\"\",\"\",VLOOKUP(AC15,Organisation[],2,FALSE))","v":""}]
["null",null,null,null,{"$f":"IF(D16=\"\",\"\",VLOOKUP(D16,bracket_type[],2,FALSE))","v":""},null,null,null,{"$f":"IF(H16=\"\",\"\",VLOOKUP(H16,height_indicator[],2,FALSE))","v":""},null,null,null,{"$f":"IF(L16=\"\",\"\",VLOOKUP(L16,Install_reason[],2,FALSE))","v":""},null,{"$f":"IF(N16=\"\",\"\",VLOOKUP(N16,Status[],2,FALSE))","v":""},null,{"$f":"IF(P16=\"\",\"\",VLOOKUP(P16,risk_likelihood[],2,FALSE))","v":""},null,{"$f":"IF(R16=\"\",\"\",VLOOKUP(R16,risk_consequence[],2,FALSE))","v":""},null,{"$f":"IF(T16=\"\",\"\",VLOOKUP(T16,risk[],2,FALSE))","v":""},null,{"$f":"IF(V16=\"\",\"\",VLOOKUP(V16,rul_reset[],2,FALSE))","v":""},null,{"$f":"IF(X16=\"\",\"\",VLOOKUP(X16,use_default_rc[],2,FALSE))","v":""},null,{"$f":"IF(Z16=\"\",\"\",VLOOKUP(Z16,condition[],2,FALSE))","v":""},null,null,{"$f":"IF(AC16=\"\",\"\",VLOOKUP(AC16,Organisation[],2,FALSE))","v":""}]
["null",null,null,null,{"$f":"IF(D17=\"\",\"\",VLOOKUP(D17,bracket_type[],2,FALSE))","v":""},null,null,null,{"$f":"IF(H17=\"\",\"\",VLOOKUP(H17,height_indicator[],2,FALSE))","v":""},null,null,null,{"$f":"IF(L17=\"\",\"\",VLOOKUP(L17,Install_reason[],2,FALSE))","v":""},null,{"$f":"IF(N17=\"\",\"\",VLOOKUP(N17,Status[],2,FALSE))","v":""},null,{"$f":"IF(P17=\"\",\"\",VLOOKUP(P17,risk_likelihood[],2,FALSE))","v":""},null,{"$f":"IF(R17=\"\",\"\",VLOOKUP(R17,risk_consequence[],2,FALSE))","v":""},null,{"$f":"IF(T17=\"\",\"\",VLOOKUP(T17,risk[],2,FALSE))","v":""},null,{"$f":"IF(V17=\"\",\"\",VLOOKUP(V17,rul_reset[],2,FALSE))","v":""},null,{"$f":"IF(X17=\"\",\"\",VLOOKUP(X17,use_default_rc[],2,FALSE))","v":""},null,{"$f":"IF(Z17=\"\",\"\",VLOOKUP(Z17,condition[],2,FALSE))","v":""},null,null,{"$f":"IF(AC17=\"\",\"\",VLOOKUP(AC17,Organisation[],2,FALSE))","v":""}]
["null",null,null,null,{"$f":"IF(D18=\"\",\"\",VLOOKUP(D18,bracket_type[],2,FALSE))","v":""},null,null,null,{"$f":"IF(H18=\"\",\"\",VLOOKUP(H18,height_indicator[],2,FALSE))","v":""},null,null,null,{"$f":"IF(L18=\"\",\"\",VLOOKUP(L18,Install_reason[],2,FALSE))","v":""},null,{"$f":"IF(N18=\"\",\"\",VLOOKUP(N18,Status[],2,FALSE))","v":""},null,{"$f":"IF(P18=\"\",\"\",VLOOKUP(P18,risk_likelihood[],2,FALSE))","v":""},null,{"$f":"IF(R18=\"\",\"\",VLOOKUP(R18,risk_consequence[],2,FALSE))","v":""},null,{"$f":"IF(T18=\"\",\"\",VLOOKUP(T18,risk[],2,FALSE))","v":""},null,{"$f":"IF(V18=\"\",\"\",VLOOKUP(V18,rul_reset[],2,FALSE))","v":""},null,{"$f":"IF(X18=\"\",\"\",VLOOKUP(X18,use_default_rc[],2,FALSE))","v":""},null,{"$f":"IF(Z18=\"\",\"\",VLOOKUP(Z18,condition[],2,FALSE))","v":""},null,null,{"$f":"IF(AC18=\"\",\"\",VLOOKUP(AC18,Organisation[],2,FALSE))","v":""}]
["null",null,null,null,{"$f":"IF(D19=\"\",\"\",VLOOKUP(D19,bracket_type[],2,FALSE))","v":""},null,null,null,{"$f":"IF(H19=\"\",\"\",VLOOKUP(H19,height_indicator[],2,FALSE))","v":""},null,null,null,{"$f":"IF(L19=\"\",\"\",VLOOKUP(L19,Install_reason[],2,FALSE))","v":""},null,{"$f":"IF(N19=\"\",\"\",VLOOKUP(N19,Status[],2,FALSE))","v":""},null,{"$f":"IF(P19=\"\",\"\",VLOOKUP(P19,risk_likelihood[],2,FALSE))","v":""},null,{"$f":"IF(R19=\"\",\"\",VLOOKUP(R19,risk_consequence[],2,FALSE))","v":""},null,{"$f":"IF(T19=\"\",\"\",VLOOKUP(T19,risk[],2,FALSE))","v":""},null,{"$f":"IF(V19=\"\",\"\",VLOOKUP(V19,rul_reset[],2,FALSE))","v":""},null,{"$f":"IF(X19=\"\",\"\",VLOOKUP(X19,use_default_rc[],2,FALSE))","v":""},null,{"$f":"IF(Z19=\"\",\"\",VLOOKUP(Z19,condition[],2,FALSE))","v":""},null,null,{"$f":"IF(AC19=\"\",\"\",VLOOKUP(AC19,Organisation[],2,FALSE))","v":""}]
["null",null,null,null,{"$f":"IF(D20=\"\",\"\",VLOOKUP(D20,bracket_type[],2,FALSE))","v":""},null,null,null,{"$f":"IF(H20=\"\",\"\",VLOOKUP(H20,height_indicator[],2,FALSE))","v":""},null,null,null,{"$f":"IF(L20=\"\",\"\",VLOOKUP(L20,Install_reason[],2,FALSE))","v":""},null,{"$f":"IF(N20=\"\",\"\",VLOOKUP(N20,Status[],2,FALSE))","v":""},null,{"$f":"IF(P20=\"\",\"\",VLOOKUP(P20,risk_likelihood[],2,FALSE))","v":""},null,{"$f":"IF(R20=\"\",\"\",VLOOKUP(R20,risk_consequence[],2,FALSE))","v":""},null,{"$f":"IF(T20=\"\",\"\",VLOOKUP(T20,risk[],2,FALSE))","v":""},null,{"$f":"IF(V20=\"\",\"\",VLOOKUP(V20,rul_reset[],2,FALSE))","v":""},null,{"$f":"IF(X20=\"\",\"\",VLOOKUP(X20,use_default_rc[],2,FALSE))","v":""},null,{"$f":"IF(Z20=\"\",\"\",VLOOKUP(Z20,condition[],2,FALSE))","v":""},null,null,{"$f":"IF(AC20=\"\",\"\",VLOOKUP(AC20,Organisation[],2,FALSE))","v":""}]
["null",null,null,null,{"$f":"IF(D21=\"\",\"\",VLOOKUP(D21,bracket_type[],2,FALSE))","v":""},null,null,null,{"$f":"IF(H21=\"\",\"\",VLOOKUP(H21,height_indicator[],2,FALSE))","v":""},null,null,null,{"$f":"IF(L21=\"\",\"\",VLOOKUP(L21,Install_reason[],2,FALSE))","v":""},null,{"$f":"IF(N21=\"\",\"\",VLOOKUP(N21,Status[],2,FALSE))","v":""},null,{"$f":"IF(P21=\"\",\"\",VLOOKUP(P21,risk_likelihood[],2,FALSE))","v":""},null,{"$f":"IF(R21=\"\",\"\",VLOOKUP(R21,risk_consequence[],2,FALSE))","v":""},null,{"$f":"IF(T21=\"\",\"\",VLOOKUP(T21,risk[],2,FALSE))","v":""},null,{"$f":"IF(V21=\"\",\"\",VLOOKUP(V21,rul_reset[],2,FALSE))","v":""},null,{"$f":"IF(X21=\"\",\"\",VLOOKUP(X21,use_default_rc[],2,FALSE))","v":""},null,{"$f":"IF(Z21=\"\",\"\",VLOOKUP(Z21,condition[],2,FALSE))","v":""},null,null,{"$f":"IF(AC21=\"\",\"\",VLOOKUP(AC21,Organisation[],2,FALSE))","v":""}]
["null",null,null,null,{"$f":"IF(D22=\"\",\"\",VLOOKUP(D22,bracket_type[],2,FALSE))","v":""},null,null,null,{"$f":"IF(H22=\"\",\"\",VLOOKUP(H22,height_indicator[],2,FALSE))","v":""},null,null,null,{"$f":"IF(L22=\"\",\"\",VLOOKUP(L22,Install_reason[],2,FALSE))","v":""},null,{"$f":"IF(N22=\"\",\"\",VLOOKUP(N22,Status[],2,FALSE))","v":""},null,{"$f":"IF(P22=\"\",\"\",VLOOKUP(P22,risk_likelihood[],2,FALSE))","v":""},null,{"$f":"IF(R22=\"\",\"\",VLOOKUP(R22,risk_consequence[],2,FALSE))","v":""},null,{"$f":"IF(T22=\"\",\"\",VLOOKUP(T22,risk[],2,FALSE))","v":""},null,{"$f":"IF(V22=\"\",\"\",VLOOKUP(V22,rul_reset[],2,FALSE))","v":""},null,{"$f":"IF(X22=\"\",\"\",VLOOKUP(X22,use_default_rc[],2,FALSE))","v":""},null,{"$f":"IF(Z22=\"\",\"\",VLOOKUP(Z22,condition[],2,FALSE))","v":""},null,null,{"$f":"IF(AC22=\"\",\"\",VLOOKUP(AC22,Organisation[],2,FALSE))","v":""}]
["null",null,null,null,{"$f":"IF(D23=\"\",\"\",VLOOKUP(D23,bracket_type[],2,FALSE))","v":""},null,null,null,{"$f":"IF(H23=\"\",\"\",VLOOKUP(H23,height_indicator[],2,FALSE))","v":""},null,null,null,{"$f":"IF(L23=\"\",\"\",VLOOKUP(L23,Install_reason[],2,FALSE))","v":""},null,{"$f":"IF(N23=\"\",\"\",VLOOKUP(N23,Status[],2,FALSE))","v":""},null,{"$f":"IF(P23=\"\",\"\",VLOOKUP(P23,risk_likelihood[],2,FALSE))","v":""},null,{"$f":"IF(R23=\"\",\"\",VLOOKUP(R23,risk_consequence[],2,FALSE))","v":""},null,{"$f":"IF(T23=\"\",\"\",VLOOKUP(T23,risk[],2,FALSE))","v":""},null,{"$f":"IF(V23=\"\",\"\",VLOOKUP(V23,rul_reset[],2,FALSE))","v":""},null,{"$f":"IF(X23=\"\",\"\",VLOOKUP(X23,use_default_rc[],2,FALSE))","v":""},null,{"$f":"IF(Z23=\"\",\"\",VLOOKUP(Z23,condition[],2,FALSE))","v":""},null,null,{"$f":"IF(AC23=\"\",\"\",VLOOKUP(AC23,Organisation[],2,FALSE))","v":""}]
["null",null,null,null,{"$f":"IF(D24=\"\",\"\",VLOOKUP(D24,bracket_type[],2,FALSE))","v":""},null,null,null,{"$f":"IF(H24=\"\",\"\",VLOOKUP(H24,height_indicator[],2,FALSE))","v":""},null,null,null,{"$f":"IF(L24=\"\",\"\",VLOOKUP(L24,Install_reason[],2,FALSE))","v":""},null,{"$f":"IF(N24=\"\",\"\",VLOOKUP(N24,Status[],2,FALSE))","v":""},null,{"$f":"IF(P24=\"\",\"\",VLOOKUP(P24,risk_likelihood[],2,FALSE))","v":""},null,{"$f":"IF(R24=\"\",\"\",VLOOKUP(R24,risk_consequence[],2,FALSE))","v":""},null,{"$f":"IF(T24=\"\",\"\",VLOOKUP(T24,risk[],2,FALSE))","v":""},null,{"$f":"IF(V24=\"\",\"\",VLOOKUP(V24,rul_reset[],2,FALSE))","v":""},null,{"$f":"IF(X24=\"\",\"\",VLOOKUP(X24,use_default_rc[],2,FALSE))","v":""},null,{"$f":"IF(Z24=\"\",\"\",VLOOKUP(Z24,condition[],2,FALSE))","v":""},null,null,{"$f":"IF(AC24=\"\",\"\",VLOOKUP(AC24,Organisation[],2,FALSE))","v":""}]
["null",null,null,null,{"$f":"IF(D25=\"\",\"\",VLOOKUP(D25,bracket_type[],2,FALSE))","v":""},null,null,null,{"$f":"IF(H25=\"\",\"\",VLOOKUP(H25,height_indicator[],2,FALSE))","v":""},null,null,null,{"$f":"IF(L25=\"\",\"\",VLOOKUP(L25,Install_reason[],2,FALSE))","v":""},null,{"$f":"IF(N25=\"\",\"\",VLOOKUP(N25,Status[],2,FALSE))","v":""},null,{"$f":"IF(P25=\"\",\"\",VLOOKUP(P25,risk_likelihood[],2,FALSE))","v":""},null,{"$f":"IF(R25=\"\",\"\",VLOOKUP(R25,risk_consequence[],2,FALSE))","v":""},null,{"$f":"IF(T25=\"\",\"\",VLOOKUP(T25,risk[],2,FALSE))","v":""},null,{"$f":"IF(V25=\"\",\"\",VLOOKUP(V25,rul_reset[],2,FALSE))","v":""},null,{"$f":"IF(X25=\"\",\"\",VLOOKUP(X25,use_default_rc[],2,FALSE))","v":""},null,{"$f":"IF(Z25=\"\",\"\",VLOOKUP(Z25,condition[],2,FALSE))","v":""},null,null,{"$f":"IF(AC25=\"\",\"\",VLOOKUP(AC25,Organisation[],2,FALSE))","v":""}]
["null",null,null,null,{"$f":"IF(D26=\"\",\"\",VLOOKUP(D26,bracket_type[],2,FALSE))","v":""},null,null,null,{"$f":"IF(H26=\"\",\"\",VLOOKUP(H26,height_indicator[],2,FALSE))","v":""},null,null,null,{"$f":"IF(L26=\"\",\"\",VLOOKUP(L26,Install_reason[],2,FALSE))","v":""},null,{"$f":"IF(N26=\"\",\"\",VLOOKUP(N26,Status[],2,FALSE))","v":""},null,{"$f":"IF(P26=\"\",\"\",VLOOKUP(P26,risk_likelihood[],2,FALSE))","v":""},null,{"$f":"IF(R26=\"\",\"\",VLOOKUP(R26,risk_consequence[],2,FALSE))","v":""},null,{"$f":"IF(T26=\"\",\"\",VLOOKUP(T26,risk[],2,FALSE))","v":""},null,{"$f":"IF(V26=\"\",\"\",VLOOKUP(V26,rul_reset[],2,FALSE))","v":""},null,{"$f":"IF(X26=\"\",\"\",VLOOKUP(X26,use_default_rc[],2,FALSE))","v":""},null,{"$f":"IF(Z26=\"\",\"\",VLOOKUP(Z26,condition[],2,FALSE))","v":""},null,null,{"$f":"IF(AC26=\"\",\"\",VLOOKUP(AC26,Organisation[],2,FALSE))","v":""}]
["null",null,null,null,{"$f":"IF(D27=\"\",\"\",VLOOKUP(D27,bracket_type[],2,FALSE))","v":""},null,null,null,{"$f":"IF(H27=\"\",\"\",VLOOKUP(H27,height_indicator[],2,FALSE))","v":""},null,null,null,{"$f":"IF(L27=\"\",\"\",VLOOKUP(L27,Install_reason[],2,FALSE))","v":""},null,{"$f":"IF(N27=\"\",\"\",VLOOKUP(N27,Status[],2,FALSE))","v":""},null,{"$f":"IF(P27=\"\",\"\",VLOOKUP(P27,risk_likelihood[],2,FALSE))","v":""},null,{"$f":"IF(R27=\"\",\"\",VLOOKUP(R27,risk_consequence[],2,FALSE))","v":""},null,{"$f":"IF(T27=\"\",\"\",VLOOKUP(T27,risk[],2,FALSE))","v":""},null,{"$f":"IF(V27=\"\",\"\",VLOOKUP(V27,rul_reset[],2,FALSE))","v":""},null,{"$f":"IF(X27=\"\",\"\",VLOOKUP(X27,use_default_rc[],2,FALSE))","v":""},null,{"$f":"IF(Z27=\"\",\"\",VLOOKUP(Z27,condition[],2,FALSE))","v":""},null,null,{"$f":"IF(AC27=\"\",\"\",VLOOKUP(AC27,Organisation[],2,FALSE))","v":""}]
["null",null,null,null,{"$f":"IF(D28=\"\",\"\",VLOOKUP(D28,bracket_type[],2,FALSE))","v":""},null,null,null,{"$f":"IF(H28=\"\",\"\",VLOOKUP(H28,height_indicator[],2,FALSE))","v":""},null,null,null,{"$f":"IF(L28=\"\",\"\",VLOOKUP(L28,Install_reason[],2,FALSE))","v":""},null,{"$f":"IF(N28=\"\",\"\",VLOOKUP(N28,Status[],2,FALSE))","v":""},null,{"$f":"IF(P28=\"\",\"\",VLOOKUP(P28,risk_likelihood[],2,FALSE))","v":""},null,{"$f":"IF(R28=\"\",\"\",VLOOKUP(R28,risk_consequence[],2,FALSE))","v":""},null,{"$f":"IF(T28=\"\",\"\",VLOOKUP(T28,risk[],2,FALSE))","v":""},null,{"$f":"IF(V28=\"\",\"\",VLOOKUP(V28,rul_reset[],2,FALSE))","v":""},null,{"$f":"IF(X28=\"\",\"\",VLOOKUP(X28,use_default_rc[],2,FALSE))","v":""},null,{"$f":"IF(Z28=\"\",\"\",VLOOKUP(Z28,condition[],2,FALSE))","v":""},null,null,{"$f":"IF(AC28=\"\",\"\",VLOOKUP(AC28,Organisation[],2,FALSE))","v":""}]
["null",null,null,null,{"$f":"IF(D29=\"\",\"\",VLOOKUP(D29,bracket_type[],2,FALSE))","v":""},null,null,null,{"$f":"IF(H29=\"\",\"\",VLOOKUP(H29,height_indicator[],2,FALSE))","v":""},null,null,null,{"$f":"IF(L29=\"\",\"\",VLOOKUP(L29,Install_reason[],2,FALSE))","v":""},null,{"$f":"IF(N29=\"\",\"\",VLOOKUP(N29,Status[],2,FALSE))","v":""},null,{"$f":"IF(P29=\"\",\"\",VLOOKUP(P29,risk_likelihood[],2,FALSE))","v":""},null,{"$f":"IF(R29=\"\",\"\",VLOOKUP(R29,risk_consequence[],2,FALSE))","v":""},null,{"$f":"IF(T29=\"\",\"\",VLOOKUP(T29,risk[],2,FALSE))","v":""},null,{"$f":"IF(V29=\"\",\"\",VLOOKUP(V29,rul_reset[],2,FALSE))","v":""},null,{"$f":"IF(X29=\"\",\"\",VLOOKUP(X29,use_default_rc[],2,FALSE))","v":""},null,{"$f":"IF(Z29=\"\",\"\",VLOOKUP(Z29,condition[],2,FALSE))","v":""},null,null,{"$f":"IF(AC29=\"\",\"\",VLOOKUP(AC29,Organisation[],2,FALSE))","v":""}]
["null",null,null,null,{"$f":"IF(D30=\"\",\"\",VLOOKUP(D30,bracket_type[],2,FALSE))","v":""},null,null,null,{"$f":"IF(H30=\"\",\"\",VLOOKUP(H30,height_indicator[],2,FALSE))","v":""},null,null,null,{"$f":"IF(L30=\"\",\"\",VLOOKUP(L30,Install_reason[],2,FALSE))","v":""},null,{"$f":"IF(N30=\"\",\"\",VLOOKUP(N30,Status[],2,FALSE))","v":""},null,{"$f":"IF(P30=\"\",\"\",VLOOKUP(P30,risk_likelihood[],2,FALSE))","v":""},null,{"$f":"IF(R30=\"\",\"\",VLOOKUP(R30,risk_consequence[],2,FALSE))","v":""},null,{"$f":"IF(T30=\"\",\"\",VLOOKUP(T30,risk[],2,FALSE))","v":""},null,{"$f":"IF(V30=\"\",\"\",VLOOKUP(V30,rul_reset[],2,FALSE))","v":""},null,{"$f":"IF(X30=\"\",\"\",VLOOKUP(X30,use_default_rc[],2,FALSE))","v":""},null,{"$f":"IF(Z30=\"\",\"\",VLOOKUP(Z30,condition[],2,FALSE))","v":""},null,null,{"$f":"IF(AC30=\"\",\"\",VLOOKUP(AC30,Organisation[],2,FALSE))","v":""}]
["null",null,null,null,{"$f":"IF(D31=\"\",\"\",VLOOKUP(D31,bracket_type[],2,FALSE))","v":""},null,null,null,{"$f":"IF(H31=\"\",\"\",VLOOKUP(H31,height_indicator[],2,FALSE))","v":""},null,null,null,{"$f":"IF(L31=\"\",\"\",VLOOKUP(L31,Install_reason[],2,FALSE))","v":""},null,{"$f":"IF(N31=\"\",\"\",VLOOKUP(N31,Status[],2,FALSE))","v":""},null,{"$f":"IF(P31=\"\",\"\",VLOOKUP(P31,risk_likelihood[],2,FALSE))","v":""},null,{"$f":"IF(R31=\"\",\"\",VLOOKUP(R31,risk_consequence[],2,FALSE))","v":""},null,{"$f":"IF(T31=\"\",\"\",VLOOKUP(T31,risk[],2,FALSE))","v":""},null,{"$f":"IF(V31=\"\",\"\",VLOOKUP(V31,rul_reset[],2,FALSE))","v":""},null,{"$f":"IF(X31=\"\",\"\",VLOOKUP(X31,use_default_rc[],2,FALSE))","v":""},null,{"$f":"IF(Z31=\"\",\"\",VLOOKUP(Z31,condition[],2,FALSE))","v":""},null,null,{"$f":"IF(AC31=\"\",\"\",VLOOKUP(AC31,Organisation[],2,FALSE))","v":""}]
["null",null,null,null,{"$f":"IF(D32=\"\",\"\",VLOOKUP(D32,bracket_type[],2,FALSE))","v":""},null,null,null,{"$f":"IF(H32=\"\",\"\",VLOOKUP(H32,height_indicator[],2,FALSE))","v":""},null,null,null,{"$f":"IF(L32=\"\",\"\",VLOOKUP(L32,Install_reason[],2,FALSE))","v":""},null,{"$f":"IF(N32=\"\",\"\",VLOOKUP(N32,Status[],2,FALSE))","v":""},null,{"$f":"IF(P32=\"\",\"\",VLOOKUP(P32,risk_likelihood[],2,FALSE))","v":""},null,{"$f":"IF(R32=\"\",\"\",VLOOKUP(R32,risk_consequence[],2,FALSE))","v":""},null,{"$f":"IF(T32=\"\",\"\",VLOOKUP(T32,risk[],2,FALSE))","v":""},null,{"$f":"IF(V32=\"\",\"\",VLOOKUP(V32,rul_reset[],2,FALSE))","v":""},null,{"$f":"IF(X32=\"\",\"\",VLOOKUP(X32,use_default_rc[],2,FALSE))","v":""},null,{"$f":"IF(Z32=\"\",\"\",VLOOKUP(Z32,condition[],2,FALSE))","v":""},null,null,{"$f":"IF(AC32=\"\",\"\",VLOOKUP(AC32,Organisation[],2,FALSE))","v":""}]
["null",null,null,null,{"$f":"IF(D33=\"\",\"\",VLOOKUP(D33,bracket_type[],2,FALSE))","v":""},null,null,null,{"$f":"IF(H33=\"\",\"\",VLOOKUP(H33,height_indicator[],2,FALSE))","v":""},null,null,null,{"$f":"IF(L33=\"\",\"\",VLOOKUP(L33,Install_reason[],2,FALSE))","v":""},null,{"$f":"IF(N33=\"\",\"\",VLOOKUP(N33,Status[],2,FALSE))","v":""},null,{"$f":"IF(P33=\"\",\"\",VLOOKUP(P33,risk_likelihood[],2,FALSE))","v":""},null,{"$f":"IF(R33=\"\",\"\",VLOOKUP(R33,risk_consequence[],2,FALSE))","v":""},null,{"$f":"IF(T33=\"\",\"\",VLOOKUP(T33,risk[],2,FALSE))","v":""},null,{"$f":"IF(V33=\"\",\"\",VLOOKUP(V33,rul_reset[],2,FALSE))","v":""},null,{"$f":"IF(X33=\"\",\"\",VLOOKUP(X33,use_default_rc[],2,FALSE))","v":""},null,{"$f":"IF(Z33=\"\",\"\",VLOOKUP(Z33,condition[],2,FALSE))","v":""},null,null,{"$f":"IF(AC33=\"\",\"\",VLOOKUP(AC33,Organisation[],2,FALSE))","v":""}]
["null",null,null,null,{"$f":"IF(D34=\"\",\"\",VLOOKUP(D34,bracket_type[],2,FALSE))","v":""},null,null,null,{"$f":"IF(H34=\"\",\"\",VLOOKUP(H34,height_indicator[],2,FALSE))","v":""},null,null,null,{"$f":"IF(L34=\"\",\"\",VLOOKUP(L34,Install_reason[],2,FALSE))","v":""},null,{"$f":"IF(N34=\"\",\"\",VLOOKUP(N34,Status[],2,FALSE))","v":""},null,{"$f":"IF(P34=\"\",\"\",VLOOKUP(P34,risk_likelihood[],2,FALSE))","v":""},null,{"$f":"IF(R34=\"\",\"\",VLOOKUP(R34,risk_consequence[],2,FALSE))","v":""},null,{"$f":"IF(T34=\"\",\"\",VLOOKUP(T34,risk[],2,FALSE))","v":""},null,{"$f":"IF(V34=\"\",\"\",VLOOKUP(V34,rul_reset[],2,FALSE))","v":""},null,{"$f":"IF(X34=\"\",\"\",VLOOKUP(X34,use_default_rc[],2,FALSE))","v":""},null,{"$f":"IF(Z34=\"\",\"\",VLOOKUP(Z34,condition[],2,FALSE))","v":""},null,null,{"$f":"IF(AC34=\"\",\"\",VLOOKUP(AC34,Organisation[],2,FALSE))","v":""}]
["null",null,null,null,{"$f":"IF(D35=\"\",\"\",VLOOKUP(D35,bracket_type[],2,FALSE))","v":""},null,null,null,{"$f":"IF(H35=\"\",\"\",VLOOKUP(H35,height_indicator[],2,FALSE))","v":""},null,null,null,{"$f":"IF(L35=\"\",\"\",VLOOKUP(L35,Install_reason[],2,FALSE))","v":""},null,{"$f":"IF(N35=\"\",\"\",VLOOKUP(N35,Status[],2,FALSE))","v":""},null,{"$f":"IF(P35=\"\",\"\",VLOOKUP(P35,risk_likelihood[],2,FALSE))","v":""},null,{"$f":"IF(R35=\"\",\"\",VLOOKUP(R35,risk_consequence[],2,FALSE))","v":""},null,{"$f":"IF(T35=\"\",\"\",VLOOKUP(T35,risk[],2,FALSE))","v":""},null,{"$f":"IF(V35=\"\",\"\",VLOOKUP(V35,rul_reset[],2,FALSE))","v":""},null,{"$f":"IF(X35=\"\",\"\",VLOOKUP(X35,use_default_rc[],2,FALSE))","v":""},null,{"$f":"IF(Z35=\"\",\"\",VLOOKUP(Z35,condition[],2,FALSE))","v":""},null,null,{"$f":"IF(AC35=\"\",\"\",VLOOKUP(AC35,Organisation[],2,FALSE))","v":""}]
["null",null,null,null,{"$f":"IF(D36=\"\",\"\",VLOOKUP(D36,bracket_type[],2,FALSE))","v":""},null,null,null,{"$f":"IF(H36=\"\",\"\",VLOOKUP(H36,height_indicator[],2,FALSE))","v":""},null,null,null,{"$f":"IF(L36=\"\",\"\",VLOOKUP(L36,Install_reason[],2,FALSE))","v":""},null,{"$f":"IF(N36=\"\",\"\",VLOOKUP(N36,Status[],2,FALSE))","v":""},null,{"$f":"IF(P36=\"\",\"\",VLOOKUP(P36,risk_likelihood[],2,FALSE))","v":""},null,{"$f":"IF(R36=\"\",\"\",VLOOKUP(R36,risk_consequence[],2,FALSE))","v":""},null,{"$f":"IF(T36=\"\",\"\",VLOOKUP(T36,risk[],2,FALSE))","v":""},null,{"$f":"IF(V36=\"\",\"\",VLOOKUP(V36,rul_reset[],2,FALSE))","v":""},null,{"$f":"IF(X36=\"\",\"\",VLOOKUP(X36,use_default_rc[],2,FALSE))","v":""},null,{"$f":"IF(Z36=\"\",\"\",VLOOKUP(Z36,condition[],2,FALSE))","v":""},null,null,{"$f":"IF(AC36=\"\",\"\",VLOOKUP(AC36,Organisation[],2,FALSE))","v":""}]
["null",null,null,null,{"$f":"IF(D37=\"\",\"\",VLOOKUP(D37,bracket_type[],2,FALSE))","v":""},null,null,null,{"$f":"IF(H37=\"\",\"\",VLOOKUP(H37,height_indicator[],2,FALSE))","v":""},null,null,null,{"$f":"IF(L37=\"\",\"\",VLOOKUP(L37,Install_reason[],2,FALSE))","v":""},null,{"$f":"IF(N37=\"\",\"\",VLOOKUP(N37,Status[],2,FALSE))","v":""},null,{"$f":"IF(P37=\"\",\"\",VLOOKUP(P37,risk_likelihood[],2,FALSE))","v":""},null,{"$f":"IF(R37=\"\",\"\",VLOOKUP(R37,risk_consequence[],2,FALSE))","v":""},null,{"$f":"IF(T37=\"\",\"\",VLOOKUP(T37,risk[],2,FALSE))","v":""},null,{"$f":"IF(V37=\"\",\"\",VLOOKUP(V37,rul_reset[],2,FALSE))","v":""},null,{"$f":"IF(X37=\"\",\"\",VLOOKUP(X37,use_default_rc[],2,FALSE))","v":""},null,{"$f":"IF(Z37=\"\",\"\",VLOOKUP(Z37,condition[],2,FALSE))","v":""},null,null,{"$f":"IF(AC37=\"\",\"\",VLOOKUP(AC37,Organisation[],2,FALSE))","v":""}]
["null",null,null,null,{"$f":"IF(D38=\"\",\"\",VLOOKUP(D38,bracket_type[],2,FALSE))","v":""},null,null,null,{"$f":"IF(H38=\"\",\"\",VLOOKUP(H38,height_indicator[],2,FALSE))","v":""},null,null,null,{"$f":"IF(L38=\"\",\"\",VLOOKUP(L38,Install_reason[],2,FALSE))","v":""},null,{"$f":"IF(N38=\"\",\"\",VLOOKUP(N38,Status[],2,FALSE))","v":""},null,{"$f":"IF(P38=\"\",\"\",VLOOKUP(P38,risk_likelihood[],2,FALSE))","v":""},null,{"$f":"IF(R38=\"\",\"\",VLOOKUP(R38,risk_consequence[],2,FALSE))","v":""},null,{"$f":"IF(T38=\"\",\"\",VLOOKUP(T38,risk[],2,FALSE))","v":""},null,{"$f":"IF(V38=\"\",\"\",VLOOKUP(V38,rul_reset[],2,FALSE))","v":""},null,{"$f":"IF(X38=\"\",\"\",VLOOKUP(X38,use_default_rc[],2,FALSE))","v":""},null,{"$f":"IF(Z38=\"\",\"\",VLOOKUP(Z38,condition[],2,FALSE))","v":""},null,null,{"$f":"IF(AC38=\"\",\"\",VLOOKUP(AC38,Organisation[],2,FALSE))","v":""}]
["null",null,null,null,{"$f":"IF(D39=\"\",\"\",VLOOKUP(D39,bracket_type[],2,FALSE))","v":""},null,null,null,{"$f":"IF(H39=\"\",\"\",VLOOKUP(H39,height_indicator[],2,FALSE))","v":""},null,null,null,{"$f":"IF(L39=\"\",\"\",VLOOKUP(L39,Install_reason[],2,FALSE))","v":""},null,{"$f":"IF(N39=\"\",\"\",VLOOKUP(N39,Status[],2,FALSE))","v":""},null,{"$f":"IF(P39=\"\",\"\",VLOOKUP(P39,risk_likelihood[],2,FALSE))","v":""},null,{"$f":"IF(R39=\"\",\"\",VLOOKUP(R39,risk_consequence[],2,FALSE))","v":""},null,{"$f":"IF(T39=\"\",\"\",VLOOKUP(T39,risk[],2,FALSE))","v":""},null,{"$f":"IF(V39=\"\",\"\",VLOOKUP(V39,rul_reset[],2,FALSE))","v":""},null,{"$f":"IF(X39=\"\",\"\",VLOOKUP(X39,use_default_rc[],2,FALSE))","v":""},null,{"$f":"IF(Z39=\"\",\"\",VLOOKUP(Z39,condition[],2,FALSE))","v":""},null,null,{"$f":"IF(AC39=\"\",\"\",VLOOKUP(AC39,Organisation[],2,FALSE))","v":""}]
["null",null,null,null,{"$f":"IF(D40=\"\",\"\",VLOOKUP(D40,bracket_type[],2,FALSE))","v":""},null,null,null,{"$f":"IF(H40=\"\",\"\",VLOOKUP(H40,height_indicator[],2,FALSE))","v":""},null,null,null,{"$f":"IF(L40=\"\",\"\",VLOOKUP(L40,Install_reason[],2,FALSE))","v":""},null,{"$f":"IF(N40=\"\",\"\",VLOOKUP(N40,Status[],2,FALSE))","v":""},null,{"$f":"IF(P40=\"\",\"\",VLOOKUP(P40,risk_likelihood[],2,FALSE))","v":""},null,{"$f":"IF(R40=\"\",\"\",VLOOKUP(R40,risk_consequence[],2,FALSE))","v":""},null,{"$f":"IF(T40=\"\",\"\",VLOOKUP(T40,risk[],2,FALSE))","v":""},null,{"$f":"IF(V40=\"\",\"\",VLOOKUP(V40,rul_reset[],2,FALSE))","v":""},null,{"$f":"IF(X40=\"\",\"\",VLOOKUP(X40,use_default_rc[],2,FALSE))","v":""},null,{"$f":"IF(Z40=\"\",\"\",VLOOKUP(Z40,condition[],2,FALSE))","v":""},null,null,{"$f":"IF(AC40=\"\",\"\",VLOOKUP(AC40,Organisation[],2,FALSE))","v":""}]
["null",null,null,null,{"$f":"IF(D41=\"\",\"\",VLOOKUP(D41,bracket_type[],2,FALSE))","v":""},null,null,null,{"$f":"IF(H41=\"\",\"\",VLOOKUP(H41,height_indicator[],2,FALSE))","v":""},null,null,null,{"$f":"IF(L41=\"\",\"\",VLOOKUP(L41,Install_reason[],2,FALSE))","v":""},null,{"$f":"IF(N41=\"\",\"\",VLOOKUP(N41,Status[],2,FALSE))","v":""},null,{"$f":"IF(P41=\"\",\"\",VLOOKUP(P41,risk_likelihood[],2,FALSE))","v":""},null,{"$f":"IF(R41=\"\",\"\",VLOOKUP(R41,risk_consequence[],2,FALSE))","v":""},null,{"$f":"IF(T41=\"\",\"\",VLOOKUP(T41,risk[],2,FALSE))","v":""},null,{"$f":"IF(V41=\"\",\"\",VLOOKUP(V41,rul_reset[],2,FALSE))","v":""},null,{"$f":"IF(X41=\"\",\"\",VLOOKUP(X41,use_default_rc[],2,FALSE))","v":""},null,{"$f":"IF(Z41=\"\",\"\",VLOOKUP(Z41,condition[],2,FALSE))","v":""},null,null,{"$f":"IF(AC41=\"\",\"\",VLOOKUP(AC41,Organisation[],2,FALSE))","v":""}]
["null",null,null,null,{"$f":"IF(D42=\"\",\"\",VLOOKUP(D42,bracket_type[],2,FALSE))","v":""},null,null,null,{"$f":"IF(H42=\"\",\"\",VLOOKUP(H42,height_indicator[],2,FALSE))","v":""},null,null,null,{"$f":"IF(L42=\"\",\"\",VLOOKUP(L42,Install_reason[],2,FALSE))","v":""},null,{"$f":"IF(N42=\"\",\"\",VLOOKUP(N42,Status[],2,FALSE))","v":""},null,{"$f":"IF(P42=\"\",\"\",VLOOKUP(P42,risk_likelihood[],2,FALSE))","v":""},null,{"$f":"IF(R42=\"\",\"\",VLOOKUP(R42,risk_consequence[],2,FALSE))","v":""},null,{"$f":"IF(T42=\"\",\"\",VLOOKUP(T42,risk[],2,FALSE))","v":""},null,{"$f":"IF(V42=\"\",\"\",VLOOKUP(V42,rul_reset[],2,FALSE))","v":""},null,{"$f":"IF(X42=\"\",\"\",VLOOKUP(X42,use_default_rc[],2,FALSE))","v":""},null,{"$f":"IF(Z42=\"\",\"\",VLOOKUP(Z42,condition[],2,FALSE))","v":""},null,null,{"$f":"IF(AC42=\"\",\"\",VLOOKUP(AC42,Organisation[],2,FALSE))","v":""}]
["null",null,null,null,{"$f":"IF(D43=\"\",\"\",VLOOKUP(D43,bracket_type[],2,FALSE))","v":""},null,null,null,{"$f":"IF(H43=\"\",\"\",VLOOKUP(H43,height_indicator[],2,FALSE))","v":""},null,null,null,{"$f":"IF(L43=\"\",\"\",VLOOKUP(L43,Install_reason[],2,FALSE))","v":""},null,{"$f":"IF(N43=\"\",\"\",VLOOKUP(N43,Status[],2,FALSE))","v":""},null,{"$f":"IF(P43=\"\",\"\",VLOOKUP(P43,risk_likelihood[],2,FALSE))","v":""},null,{"$f":"IF(R43=\"\",\"\",VLOOKUP(R43,risk_consequence[],2,FALSE))","v":""},null,{"$f":"IF(T43=\"\",\"\",VLOOKUP(T43,risk[],2,FALSE))","v":""},null,{"$f":"IF(V43=\"\",\"\",VLOOKUP(V43,rul_reset[],2,FALSE))","v":""},null,{"$f":"IF(X43=\"\",\"\",VLOOKUP(X43,use_default_rc[],2,FALSE))","v":""},null,{"$f":"IF(Z43=\"\",\"\",VLOOKUP(Z43,condition[],2,FALSE))","v":""},null,null,{"$f":"IF(AC43=\"\",\"\",VLOOKUP(AC43,Organisation[],2,FALSE))","v":""}]
["null",null,null,null,{"$f":"IF(D44=\"\",\"\",VLOOKUP(D44,bracket_type[],2,FALSE))","v":""},null,null,null,{"$f":"IF(H44=\"\",\"\",VLOOKUP(H44,height_indicator[],2,FALSE))","v":""},null,null,null,{"$f":"IF(L44=\"\",\"\",VLOOKUP(L44,Install_reason[],2,FALSE))","v":""},null,{"$f":"IF(N44=\"\",\"\",VLOOKUP(N44,Status[],2,FALSE))","v":""},null,{"$f":"IF(P44=\"\",\"\",VLOOKUP(P44,risk_likelihood[],2,FALSE))","v":""},null,{"$f":"IF(R44=\"\",\"\",VLOOKUP(R44,risk_consequence[],2,FALSE))","v":""},null,{"$f":"IF(T44=\"\",\"\",VLOOKUP(T44,risk[],2,FALSE))","v":""},null,{"$f":"IF(V44=\"\",\"\",VLOOKUP(V44,rul_reset[],2,FALSE))","v":""},null,{"$f":"IF(X44=\"\",\"\",VLOOKUP(X44,use_default_rc[],2,FALSE))","v":""},null,{"$f":"IF(Z44=\"\",\"\",VLOOKUP(Z44,condition[],2,FALSE))","v":""},null,null,{"$f":"IF(AC44=\"\",\"\",VLOOKUP(AC44,Organisation[],2,FALSE))","v":""}]
["null",null,null,null,{"$f":"IF(D45=\"\",\"\",VLOOKUP(D45,bracket_type[],2,FALSE))","v":""},null,null,null,{"$f":"IF(H45=\"\",\"\",VLOOKUP(H45,height_indicator[],2,FALSE))","v":""},null,null,null,{"$f":"IF(L45=\"\",\"\",VLOOKUP(L45,Install_reason[],2,FALSE))","v":""},null,{"$f":"IF(N45=\"\",\"\",VLOOKUP(N45,Status[],2,FALSE))","v":""},null,{"$f":"IF(P45=\"\",\"\",VLOOKUP(P45,risk_likelihood[],2,FALSE))","v":""},null,{"$f":"IF(R45=\"\",\"\",VLOOKUP(R45,risk_consequence[],2,FALSE))","v":""},null,{"$f":"IF(T45=\"\",\"\",VLOOKUP(T45,risk[],2,FALSE))","v":""},null,{"$f":"IF(V45=\"\",\"\",VLOOKUP(V45,rul_reset[],2,FALSE))","v":""},null,{"$f":"IF(X45=\"\",\"\",VLOOKUP(X45,use_default_rc[],2,FALSE))","v":""},null,{"$f":"IF(Z45=\"\",\"\",VLOOKUP(Z45,condition[],2,FALSE))","v":""},null,null,{"$f":"IF(AC45=\"\",\"\",VLOOKUP(AC45,Organisation[],2,FALSE))","v":""}]
["null",null,null,null,{"$f":"IF(D46=\"\",\"\",VLOOKUP(D46,bracket_type[],2,FALSE))","v":""},null,null,null,{"$f":"IF(H46=\"\",\"\",VLOOKUP(H46,height_indicator[],2,FALSE))","v":""},null,null,null,{"$f":"IF(L46=\"\",\"\",VLOOKUP(L46,Install_reason[],2,FALSE))","v":""},null,{"$f":"IF(N46=\"\",\"\",VLOOKUP(N46,Status[],2,FALSE))","v":""},null,{"$f":"IF(P46=\"\",\"\",VLOOKUP(P46,risk_likelihood[],2,FALSE))","v":""},null,{"$f":"IF(R46=\"\",\"\",VLOOKUP(R46,risk_consequence[],2,FALSE))","v":""},null,{"$f":"IF(T46=\"\",\"\",VLOOKUP(T46,risk[],2,FALSE))","v":""},null,{"$f":"IF(V46=\"\",\"\",VLOOKUP(V46,rul_reset[],2,FALSE))","v":""},null,{"$f":"IF(X46=\"\",\"\",VLOOKUP(X46,use_default_rc[],2,FALSE))","v":""},null,{"$f":"IF(Z46=\"\",\"\",VLOOKUP(Z46,condition[],2,FALSE))","v":""},null,null,{"$f":"IF(AC46=\"\",\"\",VLOOKUP(AC46,Organisation[],2,FALSE))","v":""}]
["null",null,null,null,{"$f":"IF(D47=\"\",\"\",VLOOKUP(D47,bracket_type[],2,FALSE))","v":""},null,null,null,{"$f":"IF(H47=\"\",\"\",VLOOKUP(H47,height_indicator[],2,FALSE))","v":""},null,null,null,{"$f":"IF(L47=\"\",\"\",VLOOKUP(L47,Install_reason[],2,FALSE))","v":""},null,{"$f":"IF(N47=\"\",\"\",VLOOKUP(N47,Status[],2,FALSE))","v":""},null,{"$f":"IF(P47=\"\",\"\",VLOOKUP(P47,risk_likelihood[],2,FALSE))","v":""},null,{"$f":"IF(R47=\"\",\"\",VLOOKUP(R47,risk_consequence[],2,FALSE))","v":""},null,{"$f":"IF(T47=\"\",\"\",VLOOKUP(T47,risk[],2,FALSE))","v":""},null,{"$f":"IF(V47=\"\",\"\",VLOOKUP(V47,rul_reset[],2,FALSE))","v":""},null,{"$f":"IF(X47=\"\",\"\",VLOOKUP(X47,use_default_rc[],2,FALSE))","v":""},null,{"$f":"IF(Z47=\"\",\"\",VLOOKUP(Z47,condition[],2,FALSE))","v":""},null,null,{"$f":"IF(AC47=\"\",\"\",VLOOKUP(AC47,Organisation[],2,FALSE))","v":""}]
["null",null,null,null,{"$f":"IF(D48=\"\",\"\",VLOOKUP(D48,bracket_type[],2,FALSE))","v":""},null,null,null,{"$f":"IF(H48=\"\",\"\",VLOOKUP(H48,height_indicator[],2,FALSE))","v":""},null,null,null,{"$f":"IF(L48=\"\",\"\",VLOOKUP(L48,Install_reason[],2,FALSE))","v":""},null,{"$f":"IF(N48=\"\",\"\",VLOOKUP(N48,Status[],2,FALSE))","v":""},null,{"$f":"IF(P48=\"\",\"\",VLOOKUP(P48,risk_likelihood[],2,FALSE))","v":""},null,{"$f":"IF(R48=\"\",\"\",VLOOKUP(R48,risk_consequence[],2,FALSE))","v":""},null,{"$f":"IF(T48=\"\",\"\",VLOOKUP(T48,risk[],2,FALSE))","v":""},null,{"$f":"IF(V48=\"\",\"\",VLOOKUP(V48,rul_reset[],2,FALSE))","v":""},null,{"$f":"IF(X48=\"\",\"\",VLOOKUP(X48,use_default_rc[],2,FALSE))","v":""},null,{"$f":"IF(Z48=\"\",\"\",VLOOKUP(Z48,condition[],2,FALSE))","v":""},null,null,{"$f":"IF(AC48=\"\",\"\",VLOOKUP(AC48,Organisation[],2,FALSE))","v":""}]
["null",null,null,null,{"$f":"IF(D49=\"\",\"\",VLOOKUP(D49,bracket_type[],2,FALSE))","v":""},null,null,null,{"$f":"IF(H49=\"\",\"\",VLOOKUP(H49,height_indicator[],2,FALSE))","v":""},null,null,null,{"$f":"IF(L49=\"\",\"\",VLOOKUP(L49,Install_reason[],2,FALSE))","v":""},null,{"$f":"IF(N49=\"\",\"\",VLOOKUP(N49,Status[],2,FALSE))","v":""},null,{"$f":"IF(P49=\"\",\"\",VLOOKUP(P49,risk_likelihood[],2,FALSE))","v":""},null,{"$f":"IF(R49=\"\",\"\",VLOOKUP(R49,risk_consequence[],2,FALSE))","v":""},null,{"$f":"IF(T49=\"\",\"\",VLOOKUP(T49,risk[],2,FALSE))","v":""},null,{"$f":"IF(V49=\"\",\"\",VLOOKUP(V49,rul_reset[],2,FALSE))","v":""},null,{"$f":"IF(X49=\"\",\"\",VLOOKUP(X49,use_default_rc[],2,FALSE))","v":""},null,{"$f":"IF(Z49=\"\",\"\",VLOOKUP(Z49,condition[],2,FALSE))","v":""},null,null,{"$f":"IF(AC49=\"\",\"\",VLOOKUP(AC49,Organisation[],2,FALSE))","v":""}]
["null",null,null,null,{"$f":"IF(D50=\"\",\"\",VLOOKUP(D50,bracket_type[],2,FALSE))","v":""},null,null,null,{"$f":"IF(H50=\"\",\"\",VLOOKUP(H50,height_indicator[],2,FALSE))","v":""},null,null,null,{"$f":"IF(L50=\"\",\"\",VLOOKUP(L50,Install_reason[],2,FALSE))","v":""},null,{"$f":"IF(N50=\"\",\"\",VLOOKUP(N50,Status[],2,FALSE))","v":""},null,{"$f":"IF(P50=\"\",\"\",VLOOKUP(P50,risk_likelihood[],2,FALSE))","v":""},null,{"$f":"IF(R50=\"\",\"\",VLOOKUP(R50,risk_consequence[],2,FALSE))","v":""},null,{"$f":"IF(T50=\"\",\"\",VLOOKUP(T50,risk[],2,FALSE))","v":""},null,{"$f":"IF(V50=\"\",\"\",VLOOKUP(V50,rul_reset[],2,FALSE))","v":""},null,{"$f":"IF(X50=\"\",\"\",VLOOKUP(X50,use_default_rc[],2,FALSE))","v":""},null,{"$f":"IF(Z50=\"\",\"\",VLOOKUP(Z50,condition[],2,FALSE))","v":""},null,null,{"$f":"IF(AC50=\"\",\"\",VLOOKUP(AC50,Organisation[],2,FALSE))","v":""}]
["null",null,null,null,{"$f":"IF(D51=\"\",\"\",VLOOKUP(D51,bracket_type[],2,FALSE))","v":""},null,null,null,{"$f":"IF(H51=\"\",\"\",VLOOKUP(H51,height_indicator[],2,FALSE))","v":""},null,null,null,{"$f":"IF(L51=\"\",\"\",VLOOKUP(L51,Install_reason[],2,FALSE))","v":""},null,{"$f":"IF(N51=\"\",\"\",VLOOKUP(N51,Status[],2,FALSE))","v":""},null,{"$f":"IF(P51=\"\",\"\",VLOOKUP(P51,risk_likelihood[],2,FALSE))","v":""},null,{"$f":"IF(R51=\"\",\"\",VLOOKUP(R51,risk_consequence[],2,FALSE))","v":""},null,{"$f":"IF(T51=\"\",\"\",VLOOKUP(T51,risk[],2,FALSE))","v":""},null,{"$f":"IF(V51=\"\",\"\",VLOOKUP(V51,rul_reset[],2,FALSE))","v":""},null,{"$f":"IF(X51=\"\",\"\",VLOOKUP(X51,use_default_rc[],2,FALSE))","v":""},null,{"$f":"IF(Z51=\"\",\"\",VLOOKUP(Z51,condition[],2,FALSE))","v":""},null,null,{"$f":"IF(AC51=\"\",\"\",VLOOKUP(AC51,Organisation[],2,FALSE))","v":""}]
["null",null,null,null,{"$f":"IF(D52=\"\",\"\",VLOOKUP(D52,bracket_type[],2,FALSE))","v":""},null,null,null,{"$f":"IF(H52=\"\",\"\",VLOOKUP(H52,height_indicator[],2,FALSE))","v":""},null,null,null,{"$f":"IF(L52=\"\",\"\",VLOOKUP(L52,Install_reason[],2,FALSE))","v":""},null,{"$f":"IF(N52=\"\",\"\",VLOOKUP(N52,Status[],2,FALSE))","v":""},null,{"$f":"IF(P52=\"\",\"\",VLOOKUP(P52,risk_likelihood[],2,FALSE))","v":""},null,{"$f":"IF(R52=\"\",\"\",VLOOKUP(R52,risk_consequence[],2,FALSE))","v":""},null,{"$f":"IF(T52=\"\",\"\",VLOOKUP(T52,risk[],2,FALSE))","v":""},null,{"$f":"IF(V52=\"\",\"\",VLOOKUP(V52,rul_reset[],2,FALSE))","v":""},null,{"$f":"IF(X52=\"\",\"\",VLOOKUP(X52,use_default_rc[],2,FALSE))","v":""},null,{"$f":"IF(Z52=\"\",\"\",VLOOKUP(Z52,condition[],2,FALSE))","v":""},null,null,{"$f":"IF(AC52=\"\",\"\",VLOOKUP(AC52,Organisation[],2,FALSE))","v":""}]
["null",null,null,null,{"$f":"IF(D53=\"\",\"\",VLOOKUP(D53,bracket_type[],2,FALSE))","v":""},null,null,null,{"$f":"IF(H53=\"\",\"\",VLOOKUP(H53,height_indicator[],2,FALSE))","v":""},null,null,null,{"$f":"IF(L53=\"\",\"\",VLOOKUP(L53,Install_reason[],2,FALSE))","v":""},null,{"$f":"IF(N53=\"\",\"\",VLOOKUP(N53,Status[],2,FALSE))","v":""},null,{"$f":"IF(P53=\"\",\"\",VLOOKUP(P53,risk_likelihood[],2,FALSE))","v":""},null,{"$f":"IF(R53=\"\",\"\",VLOOKUP(R53,risk_consequence[],2,FALSE))","v":""},null,{"$f":"IF(T53=\"\",\"\",VLOOKUP(T53,risk[],2,FALSE))","v":""},null,{"$f":"IF(V53=\"\",\"\",VLOOKUP(V53,rul_reset[],2,FALSE))","v":""},null,{"$f":"IF(X53=\"\",\"\",VLOOKUP(X53,use_default_rc[],2,FALSE))","v":""},null,{"$f":"IF(Z53=\"\",\"\",VLOOKUP(Z53,condition[],2,FALSE))","v":""},null,null,{"$f":"IF(AC53=\"\",\"\",VLOOKUP(AC53,Organisation[],2,FALSE))","v":""}]
["null",null,null,null,{"$f":"IF(D54=\"\",\"\",VLOOKUP(D54,bracket_type[],2,FALSE))","v":""},null,null,null,{"$f":"IF(H54=\"\",\"\",VLOOKUP(H54,height_indicator[],2,FALSE))","v":""},null,null,null,{"$f":"IF(L54=\"\",\"\",VLOOKUP(L54,Install_reason[],2,FALSE))","v":""},null,{"$f":"IF(N54=\"\",\"\",VLOOKUP(N54,Status[],2,FALSE))","v":""},null,{"$f":"IF(P54=\"\",\"\",VLOOKUP(P54,risk_likelihood[],2,FALSE))","v":""},null,{"$f":"IF(R54=\"\",\"\",VLOOKUP(R54,risk_consequence[],2,FALSE))","v":""},null,{"$f":"IF(T54=\"\",\"\",VLOOKUP(T54,risk[],2,FALSE))","v":""},null,{"$f":"IF(V54=\"\",\"\",VLOOKUP(V54,rul_reset[],2,FALSE))","v":""},null,{"$f":"IF(X54=\"\",\"\",VLOOKUP(X54,use_default_rc[],2,FALSE))","v":""},null,{"$f":"IF(Z54=\"\",\"\",VLOOKUP(Z54,condition[],2,FALSE))","v":""},null,null,{"$f":"IF(AC54=\"\",\"\",VLOOKUP(AC54,Organisation[],2,FALSE))","v":""}]
["null",null,null,null,{"$f":"IF(D55=\"\",\"\",VLOOKUP(D55,bracket_type[],2,FALSE))","v":""},null,null,null,{"$f":"IF(H55=\"\",\"\",VLOOKUP(H55,height_indicator[],2,FALSE))","v":""},null,null,null,{"$f":"IF(L55=\"\",\"\",VLOOKUP(L55,Install_reason[],2,FALSE))","v":""},null,{"$f":"IF(N55=\"\",\"\",VLOOKUP(N55,Status[],2,FALSE))","v":""},null,{"$f":"IF(P55=\"\",\"\",VLOOKUP(P55,risk_likelihood[],2,FALSE))","v":""},null,{"$f":"IF(R55=\"\",\"\",VLOOKUP(R55,risk_consequence[],2,FALSE))","v":""},null,{"$f":"IF(T55=\"\",\"\",VLOOKUP(T55,risk[],2,FALSE))","v":""},null,{"$f":"IF(V55=\"\",\"\",VLOOKUP(V55,rul_reset[],2,FALSE))","v":""},null,{"$f":"IF(X55=\"\",\"\",VLOOKUP(X55,use_default_rc[],2,FALSE))","v":""},null,{"$f":"IF(Z55=\"\",\"\",VLOOKUP(Z55,condition[],2,FALSE))","v":""},null,null,{"$f":"IF(AC55=\"\",\"\",VLOOKUP(AC55,Organisation[],2,FALSE))","v":""}]
["null",null,null,null,{"$f":"IF(D56=\"\",\"\",VLOOKUP(D56,bracket_type[],2,FALSE))","v":""},null,null,null,{"$f":"IF(H56=\"\",\"\",VLOOKUP(H56,height_indicator[],2,FALSE))","v":""},null,null,null,{"$f":"IF(L56=\"\",\"\",VLOOKUP(L56,Install_reason[],2,FALSE))","v":""},null,{"$f":"IF(N56=\"\",\"\",VLOOKUP(N56,Status[],2,FALSE))","v":""},null,{"$f":"IF(P56=\"\",\"\",VLOOKUP(P56,risk_likelihood[],2,FALSE))","v":""},null,{"$f":"IF(R56=\"\",\"\",VLOOKUP(R56,risk_consequence[],2,FALSE))","v":""},null,{"$f":"IF(T56=\"\",\"\",VLOOKUP(T56,risk[],2,FALSE))","v":""},null,{"$f":"IF(V56=\"\",\"\",VLOOKUP(V56,rul_reset[],2,FALSE))","v":""},null,{"$f":"IF(X56=\"\",\"\",VLOOKUP(X56,use_default_rc[],2,FALSE))","v":""},null,{"$f":"IF(Z56=\"\",\"\",VLOOKUP(Z56,condition[],2,FALSE))","v":""},null,null,{"$f":"IF(AC56=\"\",\"\",VLOOKUP(AC56,Organisation[],2,FALSE))","v":""}]
["null",null,null,null,{"$f":"IF(D57=\"\",\"\",VLOOKUP(D57,bracket_type[],2,FALSE))","v":""},null,null,null,{"$f":"IF(H57=\"\",\"\",VLOOKUP(H57,height_indicator[],2,FALSE))","v":""},null,null,null,{"$f":"IF(L57=\"\",\"\",VLOOKUP(L57,Install_reason[],2,FALSE))","v":""},null,{"$f":"IF(N57=\"\",\"\",VLOOKUP(N57,Status[],2,FALSE))","v":""},null,{"$f":"IF(P57=\"\",\"\",VLOOKUP(P57,risk_likelihood[],2,FALSE))","v":""},null,{"$f":"IF(R57=\"\",\"\",VLOOKUP(R57,risk_consequence[],2,FALSE))","v":""},null,{"$f":"IF(T57=\"\",\"\",VLOOKUP(T57,risk[],2,FALSE))","v":""},null,{"$f":"IF(V57=\"\",\"\",VLOOKUP(V57,rul_reset[],2,FALSE))","v":""},null,{"$f":"IF(X57=\"\",\"\",VLOOKUP(X57,use_default_rc[],2,FALSE))","v":""},null,{"$f":"IF(Z57=\"\",\"\",VLOOKUP(Z57,condition[],2,FALSE))","v":""},null,null,{"$f":"IF(AC57=\"\",\"\",VLOOKUP(AC57,Organisation[],2,FALSE))","v":""}]
["null",null,null,null,{"$f":"IF(D58=\"\",\"\",VLOOKUP(D58,bracket_type[],2,FALSE))","v":""},null,null,null,{"$f":"IF(H58=\"\",\"\",VLOOKUP(H58,height_indicator[],2,FALSE))","v":""},null,null,null,{"$f":"IF(L58=\"\",\"\",VLOOKUP(L58,Install_reason[],2,FALSE))","v":""},null,{"$f":"IF(N58=\"\",\"\",VLOOKUP(N58,Status[],2,FALSE))","v":""},null,{"$f":"IF(P58=\"\",\"\",VLOOKUP(P58,risk_likelihood[],2,FALSE))","v":""},null,{"$f":"IF(R58=\"\",\"\",VLOOKUP(R58,risk_consequence[],2,FALSE))","v":""},null,{"$f":"IF(T58=\"\",\"\",VLOOKUP(T58,risk[],2,FALSE))","v":""},null,{"$f":"IF(V58=\"\",\"\",VLOOKUP(V58,rul_reset[],2,FALSE))","v":""},null,{"$f":"IF(X58=\"\",\"\",VLOOKUP(X58,use_default_rc[],2,FALSE))","v":""},null,{"$f":"IF(Z58=\"\",\"\",VLOOKUP(Z58,condition[],2,FALSE))","v":""},null,null,{"$f":"IF(AC58=\"\",\"\",VLOOKUP(AC58,Organisation[],2,FALSE))","v":""}]
["null",null,null,null,{"$f":"IF(D59=\"\",\"\",VLOOKUP(D59,bracket_type[],2,FALSE))","v":""},null,null,null,{"$f":"IF(H59=\"\",\"\",VLOOKUP(H59,height_indicator[],2,FALSE))","v":""},null,null,null,{"$f":"IF(L59=\"\",\"\",VLOOKUP(L59,Install_reason[],2,FALSE))","v":""},null,{"$f":"IF(N59=\"\",\"\",VLOOKUP(N59,Status[],2,FALSE))","v":""},null,{"$f":"IF(P59=\"\",\"\",VLOOKUP(P59,risk_likelihood[],2,FALSE))","v":""},null,{"$f":"IF(R59=\"\",\"\",VLOOKUP(R59,risk_consequence[],2,FALSE))","v":""},null,{"$f":"IF(T59=\"\",\"\",VLOOKUP(T59,risk[],2,FALSE))","v":""},null,{"$f":"IF(V59=\"\",\"\",VLOOKUP(V59,rul_reset[],2,FALSE))","v":""},null,{"$f":"IF(X59=\"\",\"\",VLOOKUP(X59,use_default_rc[],2,FALSE))","v":""},null,{"$f":"IF(Z59=\"\",\"\",VLOOKUP(Z59,condition[],2,FALSE))","v":""},null,null,{"$f":"IF(AC59=\"\",\"\",VLOOKUP(AC59,Organisation[],2,FALSE))","v":""}]
["null",null,null,null,{"$f":"IF(D60=\"\",\"\",VLOOKUP(D60,bracket_type[],2,FALSE))","v":""},null,null,null,{"$f":"IF(H60=\"\",\"\",VLOOKUP(H60,height_indicator[],2,FALSE))","v":""},null,null,null,{"$f":"IF(L60=\"\",\"\",VLOOKUP(L60,Install_reason[],2,FALSE))","v":""},null,{"$f":"IF(N60=\"\",\"\",VLOOKUP(N60,Status[],2,FALSE))","v":""},null,{"$f":"IF(P60=\"\",\"\",VLOOKUP(P60,risk_likelihood[],2,FALSE))","v":""},null,{"$f":"IF(R60=\"\",\"\",VLOOKUP(R60,risk_consequence[],2,FALSE))","v":""},null,{"$f":"IF(T60=\"\",\"\",VLOOKUP(T60,risk[],2,FALSE))","v":""},null,{"$f":"IF(V60=\"\",\"\",VLOOKUP(V60,rul_reset[],2,FALSE))","v":""},null,{"$f":"IF(X60=\"\",\"\",VLOOKUP(X60,use_default_rc[],2,FALSE))","v":""},null,{"$f":"IF(Z60=\"\",\"\",VLOOKUP(Z60,condition[],2,FALSE))","v":""},null,null,{"$f":"IF(AC60=\"\",\"\",VLOOKUP(AC60,Organisation[],2,FALSE))","v":""}]
["null",null,null,null,{"$f":"IF(D61=\"\",\"\",VLOOKUP(D61,bracket_type[],2,FALSE))","v":""},null,null,null,{"$f":"IF(H61=\"\",\"\",VLOOKUP(H61,height_indicator[],2,FALSE))","v":""},null,null,null,{"$f":"IF(L61=\"\",\"\",VLOOKUP(L61,Install_reason[],2,FALSE))","v":""},null,{"$f":"IF(N61=\"\",\"\",VLOOKUP(N61,Status[],2,FALSE))","v":""},null,{"$f":"IF(P61=\"\",\"\",VLOOKUP(P61,risk_likelihood[],2,FALSE))","v":""},null,{"$f":"IF(R61=\"\",\"\",VLOOKUP(R61,risk_consequence[],2,FALSE))","v":""},null,{"$f":"IF(T61=\"\",\"\",VLOOKUP(T61,risk[],2,FALSE))","v":""},null,{"$f":"IF(V61=\"\",\"\",VLOOKUP(V61,rul_reset[],2,FALSE))","v":""},null,{"$f":"IF(X61=\"\",\"\",VLOOKUP(X61,use_default_rc[],2,FALSE))","v":""},null,{"$f":"IF(Z61=\"\",\"\",VLOOKUP(Z61,condition[],2,FALSE))","v":""},null,null,{"$f":"IF(AC61=\"\",\"\",VLOOKUP(AC61,Organisation[],2,FALSE))","v":""}]
["null",null,null,null,{"$f":"IF(D62=\"\",\"\",VLOOKUP(D62,bracket_type[],2,FALSE))","v":""},null,null,null,{"$f":"IF(H62=\"\",\"\",VLOOKUP(H62,height_indicator[],2,FALSE))","v":""},null,null,null,{"$f":"IF(L62=\"\",\"\",VLOOKUP(L62,Install_reason[],2,FALSE))","v":""},null,{"$f":"IF(N62=\"\",\"\",VLOOKUP(N62,Status[],2,FALSE))","v":""},null,{"$f":"IF(P62=\"\",\"\",VLOOKUP(P62,risk_likelihood[],2,FALSE))","v":""},null,{"$f":"IF(R62=\"\",\"\",VLOOKUP(R62,risk_consequence[],2,FALSE))","v":""},null,{"$f":"IF(T62=\"\",\"\",VLOOKUP(T62,risk[],2,FALSE))","v":""},null,{"$f":"IF(V62=\"\",\"\",VLOOKUP(V62,rul_reset[],2,FALSE))","v":""},null,{"$f":"IF(X62=\"\",\"\",VLOOKUP(X62,use_default_rc[],2,FALSE))","v":""},null,{"$f":"IF(Z62=\"\",\"\",VLOOKUP(Z62,condition[],2,FALSE))","v":""},null,null,{"$f":"IF(AC62=\"\",\"\",VLOOKUP(AC62,Organisation[],2,FALSE))","v":""}]
["null",null,null,null,{"$f":"IF(D63=\"\",\"\",VLOOKUP(D63,bracket_type[],2,FALSE))","v":""},null,null,null,{"$f":"IF(H63=\"\",\"\",VLOOKUP(H63,height_indicator[],2,FALSE))","v":""},null,null,null,{"$f":"IF(L63=\"\",\"\",VLOOKUP(L63,Install_reason[],2,FALSE))","v":""},null,{"$f":"IF(N63=\"\",\"\",VLOOKUP(N63,Status[],2,FALSE))","v":""},null,{"$f":"IF(P63=\"\",\"\",VLOOKUP(P63,risk_likelihood[],2,FALSE))","v":""},null,{"$f":"IF(R63=\"\",\"\",VLOOKUP(R63,risk_consequence[],2,FALSE))","v":""},null,{"$f":"IF(T63=\"\",\"\",VLOOKUP(T63,risk[],2,FALSE))","v":""},null,{"$f":"IF(V63=\"\",\"\",VLOOKUP(V63,rul_reset[],2,FALSE))","v":""},null,{"$f":"IF(X63=\"\",\"\",VLOOKUP(X63,use_default_rc[],2,FALSE))","v":""},null,{"$f":"IF(Z63=\"\",\"\",VLOOKUP(Z63,condition[],2,FALSE))","v":""},null,null,{"$f":"IF(AC63=\"\",\"\",VLOOKUP(AC63,Organisation[],2,FALSE))","v":""}]
["null",null,null,null,{"$f":"IF(D64=\"\",\"\",VLOOKUP(D64,bracket_type[],2,FALSE))","v":""},null,null,null,{"$f":"IF(H64=\"\",\"\",VLOOKUP(H64,height_indicator[],2,FALSE))","v":""},null,null,null,{"$f":"IF(L64=\"\",\"\",VLOOKUP(L64,Install_reason[],2,FALSE))","v":""},null,{"$f":"IF(N64=\"\",\"\",VLOOKUP(N64,Status[],2,FALSE))","v":""},null,{"$f":"IF(P64=\"\",\"\",VLOOKUP(P64,risk_likelihood[],2,FALSE))","v":""},null,{"$f":"IF(R64=\"\",\"\",VLOOKUP(R64,risk_consequence[],2,FALSE))","v":""},null,{"$f":"IF(T64=\"\",\"\",VLOOKUP(T64,risk[],2,FALSE))","v":""},null,{"$f":"IF(V64=\"\",\"\",VLOOKUP(V64,rul_reset[],2,FALSE))","v":""},null,{"$f":"IF(X64=\"\",\"\",VLOOKUP(X64,use_default_rc[],2,FALSE))","v":""},null,{"$f":"IF(Z64=\"\",\"\",VLOOKUP(Z64,condition[],2,FALSE))","v":""},null,null,{"$f":"IF(AC64=\"\",\"\",VLOOKUP(AC64,Organisation[],2,FALSE))","v":""}]
["null",null,null,null,{"$f":"IF(D65=\"\",\"\",VLOOKUP(D65,bracket_type[],2,FALSE))","v":""},null,null,null,{"$f":"IF(H65=\"\",\"\",VLOOKUP(H65,height_indicator[],2,FALSE))","v":""},null,null,null,{"$f":"IF(L65=\"\",\"\",VLOOKUP(L65,Install_reason[],2,FALSE))","v":""},null,{"$f":"IF(N65=\"\",\"\",VLOOKUP(N65,Status[],2,FALSE))","v":""},null,{"$f":"IF(P65=\"\",\"\",VLOOKUP(P65,risk_likelihood[],2,FALSE))","v":""},null,{"$f":"IF(R65=\"\",\"\",VLOOKUP(R65,risk_consequence[],2,FALSE))","v":""},null,{"$f":"IF(T65=\"\",\"\",VLOOKUP(T65,risk[],2,FALSE))","v":""},null,{"$f":"IF(V65=\"\",\"\",VLOOKUP(V65,rul_reset[],2,FALSE))","v":""},null,{"$f":"IF(X65=\"\",\"\",VLOOKUP(X65,use_default_rc[],2,FALSE))","v":""},null,{"$f":"IF(Z65=\"\",\"\",VLOOKUP(Z65,condition[],2,FALSE))","v":""},null,null,{"$f":"IF(AC65=\"\",\"\",VLOOKUP(AC65,Organisation[],2,FALSE))","v":""}]
["null",null,null,null,{"$f":"IF(D66=\"\",\"\",VLOOKUP(D66,bracket_type[],2,FALSE))","v":""},null,null,null,{"$f":"IF(H66=\"\",\"\",VLOOKUP(H66,height_indicator[],2,FALSE))","v":""},null,null,null,{"$f":"IF(L66=\"\",\"\",VLOOKUP(L66,Install_reason[],2,FALSE))","v":""},null,{"$f":"IF(N66=\"\",\"\",VLOOKUP(N66,Status[],2,FALSE))","v":""},null,{"$f":"IF(P66=\"\",\"\",VLOOKUP(P66,risk_likelihood[],2,FALSE))","v":""},null,{"$f":"IF(R66=\"\",\"\",VLOOKUP(R66,risk_consequence[],2,FALSE))","v":""},null,{"$f":"IF(T66=\"\",\"\",VLOOKUP(T66,risk[],2,FALSE))","v":""},null,{"$f":"IF(V66=\"\",\"\",VLOOKUP(V66,rul_reset[],2,FALSE))","v":""},null,{"$f":"IF(X66=\"\",\"\",VLOOKUP(X66,use_default_rc[],2,FALSE))","v":""},null,{"$f":"IF(Z66=\"\",\"\",VLOOKUP(Z66,condition[],2,FALSE))","v":""},null,null,{"$f":"IF(AC66=\"\",\"\",VLOOKUP(AC66,Organisation[],2,FALSE))","v":""}]
["null",null,null,null,{"$f":"IF(D67=\"\",\"\",VLOOKUP(D67,bracket_type[],2,FALSE))","v":""},null,null,null,{"$f":"IF(H67=\"\",\"\",VLOOKUP(H67,height_indicator[],2,FALSE))","v":""},null,null,null,{"$f":"IF(L67=\"\",\"\",VLOOKUP(L67,Install_reason[],2,FALSE))","v":""},null,{"$f":"IF(N67=\"\",\"\",VLOOKUP(N67,Status[],2,FALSE))","v":""},null,{"$f":"IF(P67=\"\",\"\",VLOOKUP(P67,risk_likelihood[],2,FALSE))","v":""},null,{"$f":"IF(R67=\"\",\"\",VLOOKUP(R67,risk_consequence[],2,FALSE))","v":""},null,{"$f":"IF(T67=\"\",\"\",VLOOKUP(T67,risk[],2,FALSE))","v":""},null,{"$f":"IF(V67=\"\",\"\",VLOOKUP(V67,rul_reset[],2,FALSE))","v":""},null,{"$f":"IF(X67=\"\",\"\",VLOOKUP(X67,use_default_rc[],2,FALSE))","v":""},null,{"$f":"IF(Z67=\"\",\"\",VLOOKUP(Z67,condition[],2,FALSE))","v":""},null,null,{"$f":"IF(AC67=\"\",\"\",VLOOKUP(AC67,Organisation[],2,FALSE))","v":""}]
["null",null,null,null,{"$f":"IF(D68=\"\",\"\",VLOOKUP(D68,bracket_type[],2,FALSE))","v":""},null,null,null,{"$f":"IF(H68=\"\",\"\",VLOOKUP(H68,height_indicator[],2,FALSE))","v":""},null,null,null,{"$f":"IF(L68=\"\",\"\",VLOOKUP(L68,Install_reason[],2,FALSE))","v":""},null,{"$f":"IF(N68=\"\",\"\",VLOOKUP(N68,Status[],2,FALSE))","v":""},null,{"$f":"IF(P68=\"\",\"\",VLOOKUP(P68,risk_likelihood[],2,FALSE))","v":""},null,{"$f":"IF(R68=\"\",\"\",VLOOKUP(R68,risk_consequence[],2,FALSE))","v":""},null,{"$f":"IF(T68=\"\",\"\",VLOOKUP(T68,risk[],2,FALSE))","v":""},null,{"$f":"IF(V68=\"\",\"\",VLOOKUP(V68,rul_reset[],2,FALSE))","v":""},null,{"$f":"IF(X68=\"\",\"\",VLOOKUP(X68,use_default_rc[],2,FALSE))","v":""},null,{"$f":"IF(Z68=\"\",\"\",VLOOKUP(Z68,condition[],2,FALSE))","v":""},null,null,{"$f":"IF(AC68=\"\",\"\",VLOOKUP(AC68,Organisation[],2,FALSE))","v":""}]
[{"$f":"_xlfn.FILTERXML(_xlfn.WEBSERVICE(\"https://nds-beta.mobileroad.org/xy_sh?rp=\"&B69&\"/\"&C69&\"&xml=true\"),\"/lrms/id_road\")","v":"null"},null,null,null,{"$f":"IF(D69=\"\",\"\",VLOOKUP(D69,bracket_type[],2,FALSE))","v":""},null,null,null,{"$f":"IF(H69=\"\",\"\",VLOOKUP(H69,height_indicator[],2,FALSE))","v":""},null,null,null,{"$f":"IF(L69=\"\",\"\",VLOOKUP(L69,Install_reason[],2,FALSE))","v":""},null,{"$f":"IF(N69=\"\",\"\",VLOOKUP(N69,Status[],2,FALSE))","v":""},null,{"$f":"IF(P69=\"\",\"\",VLOOKUP(P69,risk_likelihood[],2,FALSE))","v":""},null,{"$f":"IF(R69=\"\",\"\",VLOOKUP(R69,risk_consequence[],2,FALSE))","v":""},null,{"$f":"IF(T69=\"\",\"\",VLOOKUP(T69,risk[],2,FALSE))","v":""},null,{"$f":"IF(V69=\"\",\"\",VLOOKUP(V69,rul_reset[],2,FALSE))","v":""},null,{"$f":"IF(X69=\"\",\"\",VLOOKUP(X69,use_default_rc[],2,FALSE))","v":""},null,{"$f":"IF(Z69=\"\",\"\",VLOOKUP(Z69,condition[],2,FALSE))","v":""},null,null,{"$f":"IF(AC69=\"\",\"\",VLOOKUP(AC69,Organisation[],2,FALSE))","v":""}]
["null",null,null,null,{"$f":"IF(D70=\"\",\"\",VLOOKUP(D70,bracket_type[],2,FALSE))","v":""},null,null,null,{"$f":"IF(H70=\"\",\"\",VLOOKUP(H70,height_indicator[],2,FALSE))","v":""},null,null,null,{"$f":"IF(L70=\"\",\"\",VLOOKUP(L70,Install_reason[],2,FALSE))","v":""},null,{"$f":"IF(N70=\"\",\"\",VLOOKUP(N70,Status[],2,FALSE))","v":""},null,{"$f":"IF(P70=\"\",\"\",VLOOKUP(P70,risk_likelihood[],2,FALSE))","v":""},null,{"$f":"IF(R70=\"\",\"\",VLOOKUP(R70,risk_consequence[],2,FALSE))","v":""},null,{"$f":"IF(T70=\"\",\"\",VLOOKUP(T70,risk[],2,FALSE))","v":""},null,{"$f":"IF(V70=\"\",\"\",VLOOKUP(V70,rul_reset[],2,FALSE))","v":""},null,{"$f":"IF(X70=\"\",\"\",VLOOKUP(X70,use_default_rc[],2,FALSE))","v":""},null,{"$f":"IF(Z70=\"\",\"\",VLOOKUP(Z70,condition[],2,FALSE))","v":""},null,null,{"$f":"IF(AC70=\"\",\"\",VLOOKUP(AC70,Organisation[],2,FALSE))","v":""}]
["null",null,null,null,{"$f":"IF(D71=\"\",\"\",VLOOKUP(D71,bracket_type[],2,FALSE))","v":""},null,null,null,{"$f":"IF(H71=\"\",\"\",VLOOKUP(H71,height_indicator[],2,FALSE))","v":""},null,null,null,{"$f":"IF(L71=\"\",\"\",VLOOKUP(L71,Install_reason[],2,FALSE))","v":""},null,{"$f":"IF(N71=\"\",\"\",VLOOKUP(N71,Status[],2,FALSE))","v":""},null,{"$f":"IF(P71=\"\",\"\",VLOOKUP(P71,risk_likelihood[],2,FALSE))","v":""},null,{"$f":"IF(R71=\"\",\"\",VLOOKUP(R71,risk_consequence[],2,FALSE))","v":""},null,{"$f":"IF(T71=\"\",\"\",VLOOKUP(T71,risk[],2,FALSE))","v":""},null,{"$f":"IF(V71=\"\",\"\",VLOOKUP(V71,rul_reset[],2,FALSE))","v":""},null,{"$f":"IF(X71=\"\",\"\",VLOOKUP(X71,use_default_rc[],2,FALSE))","v":""},null,{"$f":"IF(Z71=\"\",\"\",VLOOKUP(Z71,condition[],2,FALSE))","v":""},null,null,{"$f":"IF(AC71=\"\",\"\",VLOOKUP(AC71,Organisation[],2,FALSE))","v":""}]
["null",null,null,null,{"$f":"IF(D72=\"\",\"\",VLOOKUP(D72,bracket_type[],2,FALSE))","v":""},null,null,null,{"$f":"IF(H72=\"\",\"\",VLOOKUP(H72,height_indicator[],2,FALSE))","v":""},null,null,null,{"$f":"IF(L72=\"\",\"\",VLOOKUP(L72,Install_reason[],2,FALSE))","v":""},null,{"$f":"IF(N72=\"\",\"\",VLOOKUP(N72,Status[],2,FALSE))","v":""},null,{"$f":"IF(P72=\"\",\"\",VLOOKUP(P72,risk_likelihood[],2,FALSE))","v":""},null,{"$f":"IF(R72=\"\",\"\",VLOOKUP(R72,risk_consequence[],2,FALSE))","v":""},null,{"$f":"IF(T72=\"\",\"\",VLOOKUP(T72,risk[],2,FALSE))","v":""},null,{"$f":"IF(V72=\"\",\"\",VLOOKUP(V72,rul_reset[],2,FALSE))","v":""},null,{"$f":"IF(X72=\"\",\"\",VLOOKUP(X72,use_default_rc[],2,FALSE))","v":""},null,{"$f":"IF(Z72=\"\",\"\",VLOOKUP(Z72,condition[],2,FALSE))","v":""},null,null,{"$f":"IF(AC72=\"\",\"\",VLOOKUP(AC72,Organisation[],2,FALSE))","v":""}]
["null",null,null,null,{"$f":"IF(D73=\"\",\"\",VLOOKUP(D73,bracket_type[],2,FALSE))","v":""},null,null,null,{"$f":"IF(H73=\"\",\"\",VLOOKUP(H73,height_indicator[],2,FALSE))","v":""},null,null,null,{"$f":"IF(L73=\"\",\"\",VLOOKUP(L73,Install_reason[],2,FALSE))","v":""},null,{"$f":"IF(N73=\"\",\"\",VLOOKUP(N73,Status[],2,FALSE))","v":""},null,{"$f":"IF(P73=\"\",\"\",VLOOKUP(P73,risk_likelihood[],2,FALSE))","v":""},null,{"$f":"IF(R73=\"\",\"\",VLOOKUP(R73,risk_consequence[],2,FALSE))","v":""},null,{"$f":"IF(T73=\"\",\"\",VLOOKUP(T73,risk[],2,FALSE))","v":""},null,{"$f":"IF(V73=\"\",\"\",VLOOKUP(V73,rul_reset[],2,FALSE))","v":""},null,{"$f":"IF(X73=\"\",\"\",VLOOKUP(X73,use_default_rc[],2,FALSE))","v":""},null,{"$f":"IF(Z73=\"\",\"\",VLOOKUP(Z73,condition[],2,FALSE))","v":""},null,null,{"$f":"IF(AC73=\"\",\"\",VLOOKUP(AC73,Organisation[],2,FALSE))","v":""}]
["null",null,null,null,{"$f":"IF(D74=\"\",\"\",VLOOKUP(D74,bracket_type[],2,FALSE))","v":""},null,null,null,{"$f":"IF(H74=\"\",\"\",VLOOKUP(H74,height_indicator[],2,FALSE))","v":""},null,null,null,{"$f":"IF(L74=\"\",\"\",VLOOKUP(L74,Install_reason[],2,FALSE))","v":""},null,{"$f":"IF(N74=\"\",\"\",VLOOKUP(N74,Status[],2,FALSE))","v":""},null,{"$f":"IF(P74=\"\",\"\",VLOOKUP(P74,risk_likelihood[],2,FALSE))","v":""},null,{"$f":"IF(R74=\"\",\"\",VLOOKUP(R74,risk_consequence[],2,FALSE))","v":""},null,{"$f":"IF(T74=\"\",\"\",VLOOKUP(T74,risk[],2,FALSE))","v":""},null,{"$f":"IF(V74=\"\",\"\",VLOOKUP(V74,rul_reset[],2,FALSE))","v":""},null,{"$f":"IF(X74=\"\",\"\",VLOOKUP(X74,use_default_rc[],2,FALSE))","v":""},null,{"$f":"IF(Z74=\"\",\"\",VLOOKUP(Z74,condition[],2,FALSE))","v":""},null,null,{"$f":"IF(AC74=\"\",\"\",VLOOKUP(AC74,Organisation[],2,FALSE))","v":""}]
["null",null,null,null,{"$f":"IF(D75=\"\",\"\",VLOOKUP(D75,bracket_type[],2,FALSE))","v":""},null,null,null,{"$f":"IF(H75=\"\",\"\",VLOOKUP(H75,height_indicator[],2,FALSE))","v":""},null,null,null,{"$f":"IF(L75=\"\",\"\",VLOOKUP(L75,Install_reason[],2,FALSE))","v":""},null,{"$f":"IF(N75=\"\",\"\",VLOOKUP(N75,Status[],2,FALSE))","v":""},null,{"$f":"IF(P75=\"\",\"\",VLOOKUP(P75,risk_likelihood[],2,FALSE))","v":""},null,{"$f":"IF(R75=\"\",\"\",VLOOKUP(R75,risk_consequence[],2,FALSE))","v":""},null,{"$f":"IF(T75=\"\",\"\",VLOOKUP(T75,risk[],2,FALSE))","v":""},null,{"$f":"IF(V75=\"\",\"\",VLOOKUP(V75,rul_reset[],2,FALSE))","v":""},null,{"$f":"IF(X75=\"\",\"\",VLOOKUP(X75,use_default_rc[],2,FALSE))","v":""},null,{"$f":"IF(Z75=\"\",\"\",VLOOKUP(Z75,condition[],2,FALSE))","v":""},null,null,{"$f":"IF(AC75=\"\",\"\",VLOOKUP(AC75,Organisation[],2,FALSE))","v":""}]
["null",null,null,null,{"$f":"IF(D76=\"\",\"\",VLOOKUP(D76,bracket_type[],2,FALSE))","v":""},null,null,null,{"$f":"IF(H76=\"\",\"\",VLOOKUP(H76,height_indicator[],2,FALSE))","v":""},null,null,null,{"$f":"IF(L76=\"\",\"\",VLOOKUP(L76,Install_reason[],2,FALSE))","v":""},null,{"$f":"IF(N76=\"\",\"\",VLOOKUP(N76,Status[],2,FALSE))","v":""},null,{"$f":"IF(P76=\"\",\"\",VLOOKUP(P76,risk_likelihood[],2,FALSE))","v":""},null,{"$f":"IF(R76=\"\",\"\",VLOOKUP(R76,risk_consequence[],2,FALSE))","v":""},null,{"$f":"IF(T76=\"\",\"\",VLOOKUP(T76,risk[],2,FALSE))","v":""},null,{"$f":"IF(V76=\"\",\"\",VLOOKUP(V76,rul_reset[],2,FALSE))","v":""},null,{"$f":"IF(X76=\"\",\"\",VLOOKUP(X76,use_default_rc[],2,FALSE))","v":""},null,{"$f":"IF(Z76=\"\",\"\",VLOOKUP(Z76,condition[],2,FALSE))","v":""},null,null,{"$f":"IF(AC76=\"\",\"\",VLOOKUP(AC76,Organisation[],2,FALSE))","v":""}]
["null",null,null,null,{"$f":"IF(D77=\"\",\"\",VLOOKUP(D77,bracket_type[],2,FALSE))","v":""},null,null,null,{"$f":"IF(H77=\"\",\"\",VLOOKUP(H77,height_indicator[],2,FALSE))","v":""},null,null,null,{"$f":"IF(L77=\"\",\"\",VLOOKUP(L77,Install_reason[],2,FALSE))","v":""},null,{"$f":"IF(N77=\"\",\"\",VLOOKUP(N77,Status[],2,FALSE))","v":""},null,{"$f":"IF(P77=\"\",\"\",VLOOKUP(P77,risk_likelihood[],2,FALSE))","v":""},null,{"$f":"IF(R77=\"\",\"\",VLOOKUP(R77,risk_consequence[],2,FALSE))","v":""},null,{"$f":"IF(T77=\"\",\"\",VLOOKUP(T77,risk[],2,FALSE))","v":""},null,{"$f":"IF(V77=\"\",\"\",VLOOKUP(V77,rul_reset[],2,FALSE))","v":""},null,{"$f":"IF(X77=\"\",\"\",VLOOKUP(X77,use_default_rc[],2,FALSE))","v":""},null,{"$f":"IF(Z77=\"\",\"\",VLOOKUP(Z77,condition[],2,FALSE))","v":""},null,null,{"$f":"IF(AC77=\"\",\"\",VLOOKUP(AC77,Organisation[],2,FALSE))","v":""}]
["null",null,null,null,{"$f":"IF(D78=\"\",\"\",VLOOKUP(D78,bracket_type[],2,FALSE))","v":""},null,null,null,{"$f":"IF(H78=\"\",\"\",VLOOKUP(H78,height_indicator[],2,FALSE))","v":""},null,null,null,{"$f":"IF(L78=\"\",\"\",VLOOKUP(L78,Install_reason[],2,FALSE))","v":""},null,{"$f":"IF(N78=\"\",\"\",VLOOKUP(N78,Status[],2,FALSE))","v":""},null,{"$f":"IF(P78=\"\",\"\",VLOOKUP(P78,risk_likelihood[],2,FALSE))","v":""},null,{"$f":"IF(R78=\"\",\"\",VLOOKUP(R78,risk_consequence[],2,FALSE))","v":""},null,{"$f":"IF(T78=\"\",\"\",VLOOKUP(T78,risk[],2,FALSE))","v":""},null,{"$f":"IF(V78=\"\",\"\",VLOOKUP(V78,rul_reset[],2,FALSE))","v":""},null,{"$f":"IF(X78=\"\",\"\",VLOOKUP(X78,use_default_rc[],2,FALSE))","v":""},null,{"$f":"IF(Z78=\"\",\"\",VLOOKUP(Z78,condition[],2,FALSE))","v":""},null,null,{"$f":"IF(AC78=\"\",\"\",VLOOKUP(AC78,Organisation[],2,FALSE))","v":""}]
["null",null,null,null,{"$f":"IF(D79=\"\",\"\",VLOOKUP(D79,bracket_type[],2,FALSE))","v":""},null,null,null,{"$f":"IF(H79=\"\",\"\",VLOOKUP(H79,height_indicator[],2,FALSE))","v":""},null,null,null,{"$f":"IF(L79=\"\",\"\",VLOOKUP(L79,Install_reason[],2,FALSE))","v":""},null,{"$f":"IF(N79=\"\",\"\",VLOOKUP(N79,Status[],2,FALSE))","v":""},null,{"$f":"IF(P79=\"\",\"\",VLOOKUP(P79,risk_likelihood[],2,FALSE))","v":""},null,{"$f":"IF(R79=\"\",\"\",VLOOKUP(R79,risk_consequence[],2,FALSE))","v":""},null,{"$f":"IF(T79=\"\",\"\",VLOOKUP(T79,risk[],2,FALSE))","v":""},null,{"$f":"IF(V79=\"\",\"\",VLOOKUP(V79,rul_reset[],2,FALSE))","v":""},null,{"$f":"IF(X79=\"\",\"\",VLOOKUP(X79,use_default_rc[],2,FALSE))","v":""},null,{"$f":"IF(Z79=\"\",\"\",VLOOKUP(Z79,condition[],2,FALSE))","v":""},null,null,{"$f":"IF(AC79=\"\",\"\",VLOOKUP(AC79,Organisation[],2,FALSE))","v":""}]
["null",null,null,null,{"$f":"IF(D80=\"\",\"\",VLOOKUP(D80,bracket_type[],2,FALSE))","v":""},null,null,null,{"$f":"IF(H80=\"\",\"\",VLOOKUP(H80,height_indicator[],2,FALSE))","v":""},null,null,null,{"$f":"IF(L80=\"\",\"\",VLOOKUP(L80,Install_reason[],2,FALSE))","v":""},null,{"$f":"IF(N80=\"\",\"\",VLOOKUP(N80,Status[],2,FALSE))","v":""},null,{"$f":"IF(P80=\"\",\"\",VLOOKUP(P80,risk_likelihood[],2,FALSE))","v":""},null,{"$f":"IF(R80=\"\",\"\",VLOOKUP(R80,risk_consequence[],2,FALSE))","v":""},null,{"$f":"IF(T80=\"\",\"\",VLOOKUP(T80,risk[],2,FALSE))","v":""},null,{"$f":"IF(V80=\"\",\"\",VLOOKUP(V80,rul_reset[],2,FALSE))","v":""},null,{"$f":"IF(X80=\"\",\"\",VLOOKUP(X80,use_default_rc[],2,FALSE))","v":""},null,{"$f":"IF(Z80=\"\",\"\",VLOOKUP(Z80,condition[],2,FALSE))","v":""},null,null,{"$f":"IF(AC80=\"\",\"\",VLOOKUP(AC80,Organisation[],2,FALSE))","v":""}]
["null",null,null,null,{"$f":"IF(D81=\"\",\"\",VLOOKUP(D81,bracket_type[],2,FALSE))","v":""},null,null,null,{"$f":"IF(H81=\"\",\"\",VLOOKUP(H81,height_indicator[],2,FALSE))","v":""},null,null,null,{"$f":"IF(L81=\"\",\"\",VLOOKUP(L81,Install_reason[],2,FALSE))","v":""},null,{"$f":"IF(N81=\"\",\"\",VLOOKUP(N81,Status[],2,FALSE))","v":""},null,{"$f":"IF(P81=\"\",\"\",VLOOKUP(P81,risk_likelihood[],2,FALSE))","v":""},null,{"$f":"IF(R81=\"\",\"\",VLOOKUP(R81,risk_consequence[],2,FALSE))","v":""},null,{"$f":"IF(T81=\"\",\"\",VLOOKUP(T81,risk[],2,FALSE))","v":""},null,{"$f":"IF(V81=\"\",\"\",VLOOKUP(V81,rul_reset[],2,FALSE))","v":""},null,{"$f":"IF(X81=\"\",\"\",VLOOKUP(X81,use_default_rc[],2,FALSE))","v":""},null,{"$f":"IF(Z81=\"\",\"\",VLOOKUP(Z81,condition[],2,FALSE))","v":""},null,null,{"$f":"IF(AC81=\"\",\"\",VLOOKUP(AC81,Organisation[],2,FALSE))","v":""}]
["null",null,null,null,{"$f":"IF(D82=\"\",\"\",VLOOKUP(D82,bracket_type[],2,FALSE))","v":""},null,null,null,{"$f":"IF(H82=\"\",\"\",VLOOKUP(H82,height_indicator[],2,FALSE))","v":""},null,null,null,{"$f":"IF(L82=\"\",\"\",VLOOKUP(L82,Install_reason[],2,FALSE))","v":""},null,{"$f":"IF(N82=\"\",\"\",VLOOKUP(N82,Status[],2,FALSE))","v":""},null,{"$f":"IF(P82=\"\",\"\",VLOOKUP(P82,risk_likelihood[],2,FALSE))","v":""},null,{"$f":"IF(R82=\"\",\"\",VLOOKUP(R82,risk_consequence[],2,FALSE))","v":""},null,{"$f":"IF(T82=\"\",\"\",VLOOKUP(T82,risk[],2,FALSE))","v":""},null,{"$f":"IF(V82=\"\",\"\",VLOOKUP(V82,rul_reset[],2,FALSE))","v":""},null,{"$f":"IF(X82=\"\",\"\",VLOOKUP(X82,use_default_rc[],2,FALSE))","v":""},null,{"$f":"IF(Z82=\"\",\"\",VLOOKUP(Z82,condition[],2,FALSE))","v":""},null,null,{"$f":"IF(AC82=\"\",\"\",VLOOKUP(AC82,Organisation[],2,FALSE))","v":""}]
["null",null,null,null,{"$f":"IF(D83=\"\",\"\",VLOOKUP(D83,bracket_type[],2,FALSE))","v":""},null,null,null,{"$f":"IF(H83=\"\",\"\",VLOOKUP(H83,height_indicator[],2,FALSE))","v":""},null,null,null,{"$f":"IF(L83=\"\",\"\",VLOOKUP(L83,Install_reason[],2,FALSE))","v":""},null,{"$f":"IF(N83=\"\",\"\",VLOOKUP(N83,Status[],2,FALSE))","v":""},null,{"$f":"IF(P83=\"\",\"\",VLOOKUP(P83,risk_likelihood[],2,FALSE))","v":""},null,{"$f":"IF(R83=\"\",\"\",VLOOKUP(R83,risk_consequence[],2,FALSE))","v":""},null,{"$f":"IF(T83=\"\",\"\",VLOOKUP(T83,risk[],2,FALSE))","v":""},null,{"$f":"IF(V83=\"\",\"\",VLOOKUP(V83,rul_reset[],2,FALSE))","v":""},null,{"$f":"IF(X83=\"\",\"\",VLOOKUP(X83,use_default_rc[],2,FALSE))","v":""},null,{"$f":"IF(Z83=\"\",\"\",VLOOKUP(Z83,condition[],2,FALSE))","v":""},null,null,{"$f":"IF(AC83=\"\",\"\",VLOOKUP(AC83,Organisation[],2,FALSE))","v":""}]
["null",null,null,null,{"$f":"IF(D84=\"\",\"\",VLOOKUP(D84,bracket_type[],2,FALSE))","v":""},null,null,null,{"$f":"IF(H84=\"\",\"\",VLOOKUP(H84,height_indicator[],2,FALSE))","v":""},null,null,null,{"$f":"IF(L84=\"\",\"\",VLOOKUP(L84,Install_reason[],2,FALSE))","v":""},null,{"$f":"IF(N84=\"\",\"\",VLOOKUP(N84,Status[],2,FALSE))","v":""},null,{"$f":"IF(P84=\"\",\"\",VLOOKUP(P84,risk_likelihood[],2,FALSE))","v":""},null,{"$f":"IF(R84=\"\",\"\",VLOOKUP(R84,risk_consequence[],2,FALSE))","v":""},null,{"$f":"IF(T84=\"\",\"\",VLOOKUP(T84,risk[],2,FALSE))","v":""},null,{"$f":"IF(V84=\"\",\"\",VLOOKUP(V84,rul_reset[],2,FALSE))","v":""},null,{"$f":"IF(X84=\"\",\"\",VLOOKUP(X84,use_default_rc[],2,FALSE))","v":""},null,{"$f":"IF(Z84=\"\",\"\",VLOOKUP(Z84,condition[],2,FALSE))","v":""},null,null,{"$f":"IF(AC84=\"\",\"\",VLOOKUP(AC84,Organisation[],2,FALSE))","v":""}]
["null",null,null,null,{"$f":"IF(D85=\"\",\"\",VLOOKUP(D85,bracket_type[],2,FALSE))","v":""},null,null,null,{"$f":"IF(H85=\"\",\"\",VLOOKUP(H85,height_indicator[],2,FALSE))","v":""},null,null,null,{"$f":"IF(L85=\"\",\"\",VLOOKUP(L85,Install_reason[],2,FALSE))","v":""},null,{"$f":"IF(N85=\"\",\"\",VLOOKUP(N85,Status[],2,FALSE))","v":""},null,{"$f":"IF(P85=\"\",\"\",VLOOKUP(P85,risk_likelihood[],2,FALSE))","v":""},null,{"$f":"IF(R85=\"\",\"\",VLOOKUP(R85,risk_consequence[],2,FALSE))","v":""},null,{"$f":"IF(T85=\"\",\"\",VLOOKUP(T85,risk[],2,FALSE))","v":""},null,{"$f":"IF(V85=\"\",\"\",VLOOKUP(V85,rul_reset[],2,FALSE))","v":""},null,{"$f":"IF(X85=\"\",\"\",VLOOKUP(X85,use_default_rc[],2,FALSE))","v":""},null,{"$f":"IF(Z85=\"\",\"\",VLOOKUP(Z85,condition[],2,FALSE))","v":""},null,null,{"$f":"IF(AC85=\"\",\"\",VLOOKUP(AC85,Organisation[],2,FALSE))","v":""}]
["null",null,null,null,{"$f":"IF(D86=\"\",\"\",VLOOKUP(D86,bracket_type[],2,FALSE))","v":""},null,null,null,{"$f":"IF(H86=\"\",\"\",VLOOKUP(H86,height_indicator[],2,FALSE))","v":""},null,null,null,{"$f":"IF(L86=\"\",\"\",VLOOKUP(L86,Install_reason[],2,FALSE))","v":""},null,{"$f":"IF(N86=\"\",\"\",VLOOKUP(N86,Status[],2,FALSE))","v":""},null,{"$f":"IF(P86=\"\",\"\",VLOOKUP(P86,risk_likelihood[],2,FALSE))","v":""},null,{"$f":"IF(R86=\"\",\"\",VLOOKUP(R86,risk_consequence[],2,FALSE))","v":""},null,{"$f":"IF(T86=\"\",\"\",VLOOKUP(T86,risk[],2,FALSE))","v":""},null,{"$f":"IF(V86=\"\",\"\",VLOOKUP(V86,rul_reset[],2,FALSE))","v":""},null,{"$f":"IF(X86=\"\",\"\",VLOOKUP(X86,use_default_rc[],2,FALSE))","v":""},null,{"$f":"IF(Z86=\"\",\"\",VLOOKUP(Z86,condition[],2,FALSE))","v":""},null,null,{"$f":"IF(AC86=\"\",\"\",VLOOKUP(AC86,Organisation[],2,FALSE))","v":""}]
["null",null,null,null,{"$f":"IF(D87=\"\",\"\",VLOOKUP(D87,bracket_type[],2,FALSE))","v":""},null,null,null,{"$f":"IF(H87=\"\",\"\",VLOOKUP(H87,height_indicator[],2,FALSE))","v":""},null,null,null,{"$f":"IF(L87=\"\",\"\",VLOOKUP(L87,Install_reason[],2,FALSE))","v":""},null,{"$f":"IF(N87=\"\",\"\",VLOOKUP(N87,Status[],2,FALSE))","v":""},null,{"$f":"IF(P87=\"\",\"\",VLOOKUP(P87,risk_likelihood[],2,FALSE))","v":""},null,{"$f":"IF(R87=\"\",\"\",VLOOKUP(R87,risk_consequence[],2,FALSE))","v":""},null,{"$f":"IF(T87=\"\",\"\",VLOOKUP(T87,risk[],2,FALSE))","v":""},null,{"$f":"IF(V87=\"\",\"\",VLOOKUP(V87,rul_reset[],2,FALSE))","v":""},null,{"$f":"IF(X87=\"\",\"\",VLOOKUP(X87,use_default_rc[],2,FALSE))","v":""},null,{"$f":"IF(Z87=\"\",\"\",VLOOKUP(Z87,condition[],2,FALSE))","v":""},null,null,{"$f":"IF(AC87=\"\",\"\",VLOOKUP(AC87,Organisation[],2,FALSE))","v":""}]
["null",null,null,null,{"$f":"IF(D88=\"\",\"\",VLOOKUP(D88,bracket_type[],2,FALSE))","v":""},null,null,null,{"$f":"IF(H88=\"\",\"\",VLOOKUP(H88,height_indicator[],2,FALSE))","v":""},null,null,null,{"$f":"IF(L88=\"\",\"\",VLOOKUP(L88,Install_reason[],2,FALSE))","v":""},null,{"$f":"IF(N88=\"\",\"\",VLOOKUP(N88,Status[],2,FALSE))","v":""},null,{"$f":"IF(P88=\"\",\"\",VLOOKUP(P88,risk_likelihood[],2,FALSE))","v":""},null,{"$f":"IF(R88=\"\",\"\",VLOOKUP(R88,risk_consequence[],2,FALSE))","v":""},null,{"$f":"IF(T88=\"\",\"\",VLOOKUP(T88,risk[],2,FALSE))","v":""},null,{"$f":"IF(V88=\"\",\"\",VLOOKUP(V88,rul_reset[],2,FALSE))","v":""},null,{"$f":"IF(X88=\"\",\"\",VLOOKUP(X88,use_default_rc[],2,FALSE))","v":""},null,{"$f":"IF(Z88=\"\",\"\",VLOOKUP(Z88,condition[],2,FALSE))","v":""},null,null,{"$f":"IF(AC88=\"\",\"\",VLOOKUP(AC88,Organisation[],2,FALSE))","v":""}]
["null",null,null,null,{"$f":"IF(D89=\"\",\"\",VLOOKUP(D89,bracket_type[],2,FALSE))","v":""},null,null,null,{"$f":"IF(H89=\"\",\"\",VLOOKUP(H89,height_indicator[],2,FALSE))","v":""},null,null,null,{"$f":"IF(L89=\"\",\"\",VLOOKUP(L89,Install_reason[],2,FALSE))","v":""},null,{"$f":"IF(N89=\"\",\"\",VLOOKUP(N89,Status[],2,FALSE))","v":""},null,{"$f":"IF(P89=\"\",\"\",VLOOKUP(P89,risk_likelihood[],2,FALSE))","v":""},null,{"$f":"IF(R89=\"\",\"\",VLOOKUP(R89,risk_consequence[],2,FALSE))","v":""},null,{"$f":"IF(T89=\"\",\"\",VLOOKUP(T89,risk[],2,FALSE))","v":""},null,{"$f":"IF(V89=\"\",\"\",VLOOKUP(V89,rul_reset[],2,FALSE))","v":""},null,{"$f":"IF(X89=\"\",\"\",VLOOKUP(X89,use_default_rc[],2,FALSE))","v":""},null,{"$f":"IF(Z89=\"\",\"\",VLOOKUP(Z89,condition[],2,FALSE))","v":""},null,null,{"$f":"IF(AC89=\"\",\"\",VLOOKUP(AC89,Organisation[],2,FALSE))","v":""}]
["null",null,null,null,{"$f":"IF(D90=\"\",\"\",VLOOKUP(D90,bracket_type[],2,FALSE))","v":""},null,null,null,{"$f":"IF(H90=\"\",\"\",VLOOKUP(H90,height_indicator[],2,FALSE))","v":""},null,null,null,{"$f":"IF(L90=\"\",\"\",VLOOKUP(L90,Install_reason[],2,FALSE))","v":""},null,{"$f":"IF(N90=\"\",\"\",VLOOKUP(N90,Status[],2,FALSE))","v":""},null,{"$f":"IF(P90=\"\",\"\",VLOOKUP(P90,risk_likelihood[],2,FALSE))","v":""},null,{"$f":"IF(R90=\"\",\"\",VLOOKUP(R90,risk_consequence[],2,FALSE))","v":""},null,{"$f":"IF(T90=\"\",\"\",VLOOKUP(T90,risk[],2,FALSE))","v":""},null,{"$f":"IF(V90=\"\",\"\",VLOOKUP(V90,rul_reset[],2,FALSE))","v":""},null,{"$f":"IF(X90=\"\",\"\",VLOOKUP(X90,use_default_rc[],2,FALSE))","v":""},null,{"$f":"IF(Z90=\"\",\"\",VLOOKUP(Z90,condition[],2,FALSE))","v":""},null,null,{"$f":"IF(AC90=\"\",\"\",VLOOKUP(AC90,Organisation[],2,FALSE))","v":""}]
["null",null,null,null,{"$f":"IF(D91=\"\",\"\",VLOOKUP(D91,bracket_type[],2,FALSE))","v":""},null,null,null,{"$f":"IF(H91=\"\",\"\",VLOOKUP(H91,height_indicator[],2,FALSE))","v":""},null,null,null,{"$f":"IF(L91=\"\",\"\",VLOOKUP(L91,Install_reason[],2,FALSE))","v":""},null,{"$f":"IF(N91=\"\",\"\",VLOOKUP(N91,Status[],2,FALSE))","v":""},null,{"$f":"IF(P91=\"\",\"\",VLOOKUP(P91,risk_likelihood[],2,FALSE))","v":""},null,{"$f":"IF(R91=\"\",\"\",VLOOKUP(R91,risk_consequence[],2,FALSE))","v":""},null,{"$f":"IF(T91=\"\",\"\",VLOOKUP(T91,risk[],2,FALSE))","v":""},null,{"$f":"IF(V91=\"\",\"\",VLOOKUP(V91,rul_reset[],2,FALSE))","v":""},null,{"$f":"IF(X91=\"\",\"\",VLOOKUP(X91,use_default_rc[],2,FALSE))","v":""},null,{"$f":"IF(Z91=\"\",\"\",VLOOKUP(Z91,condition[],2,FALSE))","v":""},null,null,{"$f":"IF(AC91=\"\",\"\",VLOOKUP(AC91,Organisation[],2,FALSE))","v":""}]
["null",null,null,null,{"$f":"IF(D92=\"\",\"\",VLOOKUP(D92,bracket_type[],2,FALSE))","v":""},null,null,null,{"$f":"IF(H92=\"\",\"\",VLOOKUP(H92,height_indicator[],2,FALSE))","v":""},null,null,null,{"$f":"IF(L92=\"\",\"\",VLOOKUP(L92,Install_reason[],2,FALSE))","v":""},null,{"$f":"IF(N92=\"\",\"\",VLOOKUP(N92,Status[],2,FALSE))","v":""},null,{"$f":"IF(P92=\"\",\"\",VLOOKUP(P92,risk_likelihood[],2,FALSE))","v":""},null,{"$f":"IF(R92=\"\",\"\",VLOOKUP(R92,risk_consequence[],2,FALSE))","v":""},null,{"$f":"IF(T92=\"\",\"\",VLOOKUP(T92,risk[],2,FALSE))","v":""},null,{"$f":"IF(V92=\"\",\"\",VLOOKUP(V92,rul_reset[],2,FALSE))","v":""},null,{"$f":"IF(X92=\"\",\"\",VLOOKUP(X92,use_default_rc[],2,FALSE))","v":""},null,{"$f":"IF(Z92=\"\",\"\",VLOOKUP(Z92,condition[],2,FALSE))","v":""},null,null,{"$f":"IF(AC92=\"\",\"\",VLOOKUP(AC92,Organisation[],2,FALSE))","v":""}]
["null",null,null,null,{"$f":"IF(D93=\"\",\"\",VLOOKUP(D93,bracket_type[],2,FALSE))","v":""},null,null,null,{"$f":"IF(H93=\"\",\"\",VLOOKUP(H93,height_indicator[],2,FALSE))","v":""},null,null,null,{"$f":"IF(L93=\"\",\"\",VLOOKUP(L93,Install_reason[],2,FALSE))","v":""},null,{"$f":"IF(N93=\"\",\"\",VLOOKUP(N93,Status[],2,FALSE))","v":""},null,{"$f":"IF(P93=\"\",\"\",VLOOKUP(P93,risk_likelihood[],2,FALSE))","v":""},null,{"$f":"IF(R93=\"\",\"\",VLOOKUP(R93,risk_consequence[],2,FALSE))","v":""},null,{"$f":"IF(T93=\"\",\"\",VLOOKUP(T93,risk[],2,FALSE))","v":""},null,{"$f":"IF(V93=\"\",\"\",VLOOKUP(V93,rul_reset[],2,FALSE))","v":""},null,{"$f":"IF(X93=\"\",\"\",VLOOKUP(X93,use_default_rc[],2,FALSE))","v":""},null,{"$f":"IF(Z93=\"\",\"\",VLOOKUP(Z93,condition[],2,FALSE))","v":""},null,null,{"$f":"IF(AC93=\"\",\"\",VLOOKUP(AC93,Organisation[],2,FALSE))","v":""}]
["null",null,null,null,{"$f":"IF(D94=\"\",\"\",VLOOKUP(D94,bracket_type[],2,FALSE))","v":""},null,null,null,{"$f":"IF(H94=\"\",\"\",VLOOKUP(H94,height_indicator[],2,FALSE))","v":""},null,null,null,{"$f":"IF(L94=\"\",\"\",VLOOKUP(L94,Install_reason[],2,FALSE))","v":""},null,{"$f":"IF(N94=\"\",\"\",VLOOKUP(N94,Status[],2,FALSE))","v":""},null,{"$f":"IF(P94=\"\",\"\",VLOOKUP(P94,risk_likelihood[],2,FALSE))","v":""},null,{"$f":"IF(R94=\"\",\"\",VLOOKUP(R94,risk_consequence[],2,FALSE))","v":""},null,{"$f":"IF(T94=\"\",\"\",VLOOKUP(T94,risk[],2,FALSE))","v":""},null,{"$f":"IF(V94=\"\",\"\",VLOOKUP(V94,rul_reset[],2,FALSE))","v":""},null,{"$f":"IF(X94=\"\",\"\",VLOOKUP(X94,use_default_rc[],2,FALSE))","v":""},null,{"$f":"IF(Z94=\"\",\"\",VLOOKUP(Z94,condition[],2,FALSE))","v":""},null,null,{"$f":"IF(AC94=\"\",\"\",VLOOKUP(AC94,Organisation[],2,FALSE))","v":""}]
["null",null,null,null,{"$f":"IF(D95=\"\",\"\",VLOOKUP(D95,bracket_type[],2,FALSE))","v":""},null,null,null,{"$f":"IF(H95=\"\",\"\",VLOOKUP(H95,height_indicator[],2,FALSE))","v":""},null,null,null,{"$f":"IF(L95=\"\",\"\",VLOOKUP(L95,Install_reason[],2,FALSE))","v":""},null,{"$f":"IF(N95=\"\",\"\",VLOOKUP(N95,Status[],2,FALSE))","v":""},null,{"$f":"IF(P95=\"\",\"\",VLOOKUP(P95,risk_likelihood[],2,FALSE))","v":""},null,{"$f":"IF(R95=\"\",\"\",VLOOKUP(R95,risk_consequence[],2,FALSE))","v":""},null,{"$f":"IF(T95=\"\",\"\",VLOOKUP(T95,risk[],2,FALSE))","v":""},null,{"$f":"IF(V95=\"\",\"\",VLOOKUP(V95,rul_reset[],2,FALSE))","v":""},null,{"$f":"IF(X95=\"\",\"\",VLOOKUP(X95,use_default_rc[],2,FALSE))","v":""},null,{"$f":"IF(Z95=\"\",\"\",VLOOKUP(Z95,condition[],2,FALSE))","v":""},null,null,{"$f":"IF(AC95=\"\",\"\",VLOOKUP(AC95,Organisation[],2,FALSE))","v":""}]
["null",null,null,null,{"$f":"IF(D96=\"\",\"\",VLOOKUP(D96,bracket_type[],2,FALSE))","v":""},null,null,null,{"$f":"IF(H96=\"\",\"\",VLOOKUP(H96,height_indicator[],2,FALSE))","v":""},null,null,null,{"$f":"IF(L96=\"\",\"\",VLOOKUP(L96,Install_reason[],2,FALSE))","v":""},null,{"$f":"IF(N96=\"\",\"\",VLOOKUP(N96,Status[],2,FALSE))","v":""},null,{"$f":"IF(P96=\"\",\"\",VLOOKUP(P96,risk_likelihood[],2,FALSE))","v":""},null,{"$f":"IF(R96=\"\",\"\",VLOOKUP(R96,risk_consequence[],2,FALSE))","v":""},null,{"$f":"IF(T96=\"\",\"\",VLOOKUP(T96,risk[],2,FALSE))","v":""},null,{"$f":"IF(V96=\"\",\"\",VLOOKUP(V96,rul_reset[],2,FALSE))","v":""},null,{"$f":"IF(X96=\"\",\"\",VLOOKUP(X96,use_default_rc[],2,FALSE))","v":""},null,{"$f":"IF(Z96=\"\",\"\",VLOOKUP(Z96,condition[],2,FALSE))","v":""},null,null,{"$f":"IF(AC96=\"\",\"\",VLOOKUP(AC96,Organisation[],2,FALSE))","v":""}]
["null",null,null,null,{"$f":"IF(D97=\"\",\"\",VLOOKUP(D97,bracket_type[],2,FALSE))","v":""},null,null,null,{"$f":"IF(H97=\"\",\"\",VLOOKUP(H97,height_indicator[],2,FALSE))","v":""},null,null,null,{"$f":"IF(L97=\"\",\"\",VLOOKUP(L97,Install_reason[],2,FALSE))","v":""},null,{"$f":"IF(N97=\"\",\"\",VLOOKUP(N97,Status[],2,FALSE))","v":""},null,{"$f":"IF(P97=\"\",\"\",VLOOKUP(P97,risk_likelihood[],2,FALSE))","v":""},null,{"$f":"IF(R97=\"\",\"\",VLOOKUP(R97,risk_consequence[],2,FALSE))","v":""},null,{"$f":"IF(T97=\"\",\"\",VLOOKUP(T97,risk[],2,FALSE))","v":""},null,{"$f":"IF(V97=\"\",\"\",VLOOKUP(V97,rul_reset[],2,FALSE))","v":""},null,{"$f":"IF(X97=\"\",\"\",VLOOKUP(X97,use_default_rc[],2,FALSE))","v":""},null,{"$f":"IF(Z97=\"\",\"\",VLOOKUP(Z97,condition[],2,FALSE))","v":""},null,null,{"$f":"IF(AC97=\"\",\"\",VLOOKUP(AC97,Organisation[],2,FALSE))","v":""}]
["null",null,null,null,{"$f":"IF(D98=\"\",\"\",VLOOKUP(D98,bracket_type[],2,FALSE))","v":""},null,null,null,{"$f":"IF(H98=\"\",\"\",VLOOKUP(H98,height_indicator[],2,FALSE))","v":""},null,null,null,{"$f":"IF(L98=\"\",\"\",VLOOKUP(L98,Install_reason[],2,FALSE))","v":""},null,{"$f":"IF(N98=\"\",\"\",VLOOKUP(N98,Status[],2,FALSE))","v":""},null,{"$f":"IF(P98=\"\",\"\",VLOOKUP(P98,risk_likelihood[],2,FALSE))","v":""},null,{"$f":"IF(R98=\"\",\"\",VLOOKUP(R98,risk_consequence[],2,FALSE))","v":""},null,{"$f":"IF(T98=\"\",\"\",VLOOKUP(T98,risk[],2,FALSE))","v":""},null,{"$f":"IF(V98=\"\",\"\",VLOOKUP(V98,rul_reset[],2,FALSE))","v":""},null,{"$f":"IF(X98=\"\",\"\",VLOOKUP(X98,use_default_rc[],2,FALSE))","v":""},null,{"$f":"IF(Z98=\"\",\"\",VLOOKUP(Z98,condition[],2,FALSE))","v":""},null,null,{"$f":"IF(AC98=\"\",\"\",VLOOKUP(AC98,Organisation[],2,FALSE))","v":""}]
["null",null,null,null,{"$f":"IF(D99=\"\",\"\",VLOOKUP(D99,bracket_type[],2,FALSE))","v":""},null,null,null,{"$f":"IF(H99=\"\",\"\",VLOOKUP(H99,height_indicator[],2,FALSE))","v":""},null,null,null,{"$f":"IF(L99=\"\",\"\",VLOOKUP(L99,Install_reason[],2,FALSE))","v":""},null,{"$f":"IF(N99=\"\",\"\",VLOOKUP(N99,Status[],2,FALSE))","v":""},null,{"$f":"IF(P99=\"\",\"\",VLOOKUP(P99,risk_likelihood[],2,FALSE))","v":""},null,{"$f":"IF(R99=\"\",\"\",VLOOKUP(R99,risk_consequence[],2,FALSE))","v":""},null,{"$f":"IF(T99=\"\",\"\",VLOOKUP(T99,risk[],2,FALSE))","v":""},null,{"$f":"IF(V99=\"\",\"\",VLOOKUP(V99,rul_reset[],2,FALSE))","v":""},null,{"$f":"IF(X99=\"\",\"\",VLOOKUP(X99,use_default_rc[],2,FALSE))","v":""},null,{"$f":"IF(Z99=\"\",\"\",VLOOKUP(Z99,condition[],2,FALSE))","v":""},null,null,{"$f":"IF(AC99=\"\",\"\",VLOOKUP(AC99,Organisation[],2,FALSE))","v":""}]
["null",null,null,null,{"$f":"IF(D100=\"\",\"\",VLOOKUP(D100,bracket_type[],2,FALSE))","v":""},null,null,null,{"$f":"IF(H100=\"\",\"\",VLOOKUP(H100,height_indicator[],2,FALSE))","v":""},null,null,null,{"$f":"IF(L100=\"\",\"\",VLOOKUP(L100,Install_reason[],2,FALSE))","v":""},null,{"$f":"IF(N100=\"\",\"\",VLOOKUP(N100,Status[],2,FALSE))","v":""},null,{"$f":"IF(P100=\"\",\"\",VLOOKUP(P100,risk_likelihood[],2,FALSE))","v":""},null,{"$f":"IF(R100=\"\",\"\",VLOOKUP(R100,risk_consequence[],2,FALSE))","v":""},null,{"$f":"IF(T100=\"\",\"\",VLOOKUP(T100,risk[],2,FALSE))","v":""},null,{"$f":"IF(V100=\"\",\"\",VLOOKUP(V100,rul_reset[],2,FALSE))","v":""},null,{"$f":"IF(X100=\"\",\"\",VLOOKUP(X100,use_default_rc[],2,FALSE))","v":""},null,{"$f":"IF(Z100=\"\",\"\",VLOOKUP(Z100,condition[],2,FALSE))","v":""},null,null,{"$f":"IF(AC100=\"\",\"\",VLOOKUP(AC100,Organisation[],2,FALSE))","v":""}]

{"sheet":"Lookups","index":1,"n_rows":151,"n_cols":32,"rows_kept":151,"cut":false,"hidden":false,"merged":[]}
["bracket_type.description","bracket_type.code",null,"height_indicator.description","height_indicator.code",null,"Install reason.description","Install reason.code",null,"Status.description","Status.code",null,"condition.description","condition.code",null,"Organisation.description","Organisation.code",null,"risk_likelihood.description","risk_likelihood.code",null,"risk_consequence.description","risk_consequence.code",null,"risk.description","risk.code",null,"rul_reset.description","rul_reset.code",null,"use_default_rc.description","use_default_rc.code"]
["Arm, curved, double","ACD",null,"Estimate","E",null,"Removed","99",null,"New","N",null,"Excellent","1",null,"3M","3M",null,"Rare","1",null,"Insignificant","1",null,"Very Low","1",null,"Not Reset","N",null,"Default","D"]
["Arm, curved, quadruple","ACQ",null,"Measured","M",null,"Accident Damage","AD",null,"Reconditioned","R",null,"Good","2",null,"Automobile Association","AA",null,"Unlikely","2",null,"Minor","2",null,"Low","2",null,"Reset to Zero","R",null,"User","U"]
["Arm, curved, single","ACS",null,"Not applicable","N",null,"Aged - bulb blown","AG",null,null,null,null,"Average","3",null,"Auckland Council","ACC",null,"Possible","3",null,"Moderate","3",null,"Medium","3"]
["Arm, elliptical, double","AED",null,null,null,null,"Block Change","BC",null,null,null,null,"Poor","4",null,"Alarm Centre Installation Ltd","ACI",null,"Likely","4",null,"Major","4",null,"High","4"]
["Arm, elliptical, single","AES",null,null,null,null,"Bulk Lamp Replacement","BL",null,null,null,null,"Very poor","5",null,"Agfirst","AGF",null,"Almost Certain","5",null,"Extreme","5",null,"Extreme","5"]
["Arm, mitred, double","AMD",null,null,null,null,"Corrosion","CO",null,null,null,null,null,null,null,"Auckland Motorway Alliance","AMA",null,"Unknown","U",null,"Unknown","U",null,"Unknown","U"]
["Arm, mitred, single","AMS",null,null,null,null,"Damaged","D",null,null,null,null,null,null,null,"Asset Management Engineers Ltd","AME"]
["Bracket, curved, front mounted","BCF",null,null,null,null,"Deliberate damage","DM",null,null,null,null,null,null,null,"Asset Management Technicians Ltd","AMT"]
["Bracket, flat, X-arm mounted","BFX",null,null,null,null,"Fault","F",null,null,null,null,null,null,null,"Armitage Systems","ARM"]
["Bracket, mitred, front mt","BMF",null,null,null,null,"Lightning","LN",null,null,null,null,null,null,null,"Aspect Solutions Ltd","ASL"]
["Bracket, mitred, side mt","BMS",null,null,null,null,"Minor safety project","MS",null,null,null,null,null,null,null,"Auckland System Management","ASM"]
["Cross Arm Mounted Pipe","CA",null,null,null,null,"New Subdivision","NS",null,null,null,null,null,null,null,"Auckland Transport","AT2"]
["Double curved","DC",null,null,null,null,"Removed","RM",null,null,null,null,null,null,null,"Aspect Technology and Equipment Ltd","ATE"]
["Decorative, curved, double","DCD",null,null,null,null,"Safety Issues","SF",null,null,null,null,null,null,null,"ARRB Transport Research Ltd","ATR"]
["Decorative, curved, single","DCS",null,null,null,null,"Upgrade","UG",null,null,null,null,null,null,null,"Auckland University","AUN"]
["Double Eliptical","DE",null,null,null,null,"Vehicle Collision","VC",null,null,null,null,null,null,null,"Broadspectrum (NZ) Ltd","B(L"]
["Decorative, flat, single","DFC",null,null,null,null,"Vandalised","VD",null,null,null,null,null,null,null,"Bri-Ken and Associates Ltd","BAA"]
["Decorative, flat, double","DFD",null,null,null,null,null,null,null,null,null,null,null,null,null,"Bartley Consultants Ltd","BAR"]
["Double Mitred","DM",null,null,null,null,null,null,null,null,null,null,null,null,null,"Bloxam Burnett & Olliver Ltd","BB&"]
["Decor, pole top light, single","DPTS",null,null,null,null,null,null,null,null,null,null,null,null,null,"Beca Infrastructure","BCF"]
["Front Mounted Angle","FMA",null,null,null,null,null,null,null,null,null,null,null,null,null,"Buller District Council","BDC"]
["Front Mounted Curved","FMC",null,null,null,null,null,null,null,null,null,null,null,null,null,"Blacktop","BLA"]
["Front Mount Straight","FMS",null,null,null,null,null,null,null,null,null,null,null,null,null,"Beca Ltd.","BLT"]
["No Bracket","NB",null,null,null,null,null,null,null,null,null,null,null,null,null,"Civil Assist Ltd","CAL"]
["No Bracket","NO",null,null,null,null,null,null,null,null,null,null,null,null,null,"Christchurch City Council","CCC"]
["Pole Cap Standard","PCS",null,null,null,null,null,null,null,null,null,null,null,null,null,"City Care Ltd","CCL"]
["Pole Cap Tall","PCT",null,null,null,null,null,null,null,null,null,null,null,null,null,"Currie Electrical Ltd.","CEL"]
["Post Top","PT",null,null,null,null,null,null,null,null,null,null,null,null,null,"Company-X Ltd.","CL"]
["Reticulation Standard","RTS",null,null,null,null,null,null,null,null,null,null,null,null,null,"Critchlow Limited","CL2"]
["Reticulation Tall","RTT",null,null,null,null,null,null,null,null,null,null,null,null,null,"Coastline Markers Ltd","CML"]
["Specific, bollard","SB",null,null,null,null,null,null,null,null,null,null,null,null,null,"CoreLogic NZ Ltd.","CNL"]
["Specific, belisha beacon","SBB",null,null,null,null,null,null,null,null,null,null,null,null,null,"Central Otago District Council","COD"]
["Specific, building,double","SBD",null,null,null,null,null,null,null,null,null,null,null,null,null,"Other Contractor","CON"]
["Single curved","SC",null,null,null,null,null,null,null,null,null,null,null,null,null,"CSL Traffic","CSL"]
["Single Eliptical","SE",null,null,null,null,null,null,null,null,null,null,null,null,null,"Connell Wagner Ltd","CWL"]
["Single Mitred","SM",null,null,null,null,null,null,null,null,null,null,null,null,null,"Dunedin City Council","DCC"]
["Specific, other","SO",null,null,null,null,null,null,null,null,null,null,null,null,null,"D & L Crowe Ltd","DLC"]
["Specific, other,single","SOS",null,null,null,null,null,null,null,null,null,null,null,null,null,"Spiire NZ Ltd","DWK"]
["Specific, ped. xing spot light","SPL",null,null,null,null,null,null,null,null,null,null,null,null,null,"Excell Corporation","ECL"]
["Triple Curved","TC",null,null,null,null,null,null,null,null,null,null,null,null,null,"Ferguson Ind","FGI"]
["Top Mount Curved","TMC",null,null,null,null,null,null,null,null,null,null,null,null,null,"Fulton Hogan (NZ) Ltd.","FUL"]
["Top Mount Straight","TMS",null,null,null,null,null,null,null,null,null,null,null,null,null,"Gisborne District Council","GDC"]
[null,null,null,null,null,null,null,null,null,null,null,null,null,null,null,"Geosolve Ltd","GEO"]
[null,null,null,null,null,null,null,null,null,null,null,null,null,null,null,"GHD Ltd.","GHD"]
[null,null,null,null,null,null,null,null,null,null,null,null,null,null,null,"HEB Construction Ltd","HEB"]
[null,null,null,null,null,null,null,null,null,null,null,null,null,null,null,"Higgins Contractors Ltd.","HIG"]
[null,null,null,null,null,null,null,null,null,null,null,null,null,null,null,"HMI Technologies","HMI"]
[null,null,null,null,null,null,null,null,null,null,null,null,null,null,null,"HERE New Zealand Ltd","HNZ"]
[null,null,null,null,null,null,null,null,null,null,null,null,null,null,null,"HTS Group","HTS"]
[null,null,null,null,null,null,null,null,null,null,null,null,null,null,null,"Inframix Construction Ltd","IMX"]
[null,null,null,null,null,null,null,null,null,null,null,null,null,null,null,"Inzone","INZ"]
[null,null,null,null,null,null,null,null,null,null,null,null,null,null,null,"Isaac Construction","ISC"]
[null,null,null,null,null,null,null,null,null,null,null,null,null,null,null,"Island Asphalts","ISL"]
[null,null,null,null,null,null,null,null,null,null,null,null,null,null,null,"ITS","ITS"]
[null,null,null,null,null,null,null,null,null,null,null,null,null,null,null,"Jacobs New Zealand Ltd","JAC"]
[null,null,null,null,null,null,null,null,null,null,null,null,null,null,null,"JCW Consultant","JC"]
[null,null,null,null,null,null,null,null,null,null,null,null,null,null,null,"JCL Asphalt subcontractor","JCL"]
[null,null,null,null,null,null,null,null,null,null,null,null,null,null,null,"JJ Walters","JJW"]
[null,null,null,null,null,null,null,null,null,null,null,null,null,null,null,"Johnstone & Masters Ltd","JM"]
[null,null,null,null,null,null,null,null,null,null,null,null,null,null,null,"NZTA (JTOC)","JTO"]
[null,null,null,null,null,null,null,null,null,null,null,null,null,null,null,"Juno Services Ltd","JUN"]
[null,null,null,null,null,null,null,null,null,null,null,null,null,null,null,"Kapiti Coast District Council","KCD"]
[null,null,null,null,null,null,null,null,null,null,null,null,null,null,null,"Kampung Consulting Ltd.","KCL"]
[null,null,null,null,null,null,null,null,null,null,null,null,null,null,null,"Kelcroft Engineering","KEL"]
[null,null,null,null,null,null,null,null,null,null,null,null,null,null,null,"Local Authority","LA"]
[null,null,null,null,null,null,null,null,null,null,null,null,null,null,null,"Lonrix Ltd","LL"]
[null,null,null,null,null,null,null,null,null,null,null,null,null,null,null,"McKays Consultants","MCC"]
[null,null,null,null,null,null,null,null,null,null,null,null,null,null,null,"Matamata-Piako District Council","MD2"]
[null,null,null,null,null,null,null,null,null,null,null,null,null,null,null,"Manawatu District Council","MDC"]
[null,null,null,null,null,null,null,null,null,null,null,null,null,null,null,"McKay Electrical Ltd","MEL"]
[null,null,null,null,null,null,null,null,null,null,null,null,null,null,null,"Aecom NZ Ltd","MER"]
[null,null,null,null,null,null,null,null,null,null,null,null,null,null,null,"MetService","MET"]
[null,null,null,null,null,null,null,null,null,null,null,null,null,null,null,"Marlborough NOC JV","MJV"]
[null,null,null,null,null,null,null,null,null,null,null,null,null,null,null,"McKay Ltd.","ML"]
[null,null,null,null,null,null,null,null,null,null,null,null,null,null,null,"Marlborough Roads","MR"]
[null,null,null,null,null,null,null,null,null,null,null,null,null,null,null,"MWH NZ Ltd.","MWH"]
[null,null,null,null,null,null,null,null,null,null,null,null,null,null,null,"Napier City Council","NCC"]
[null,null,null,null,null,null,null,null,null,null,null,null,null,null,null,"NZ Transport Agency - Highway Programme","NTA"]
[null,null,null,null,null,null,null,null,null,null,null,null,null,null,null,"NZ Transport Agency - Funding","NTF"]
[null,null,null,null,null,null,null,null,null,null,null,null,null,null,null,"North Power","NTH"]
[null,null,null,null,null,null,null,null,null,null,null,null,null,null,null,"Nutech Security","NUT"]
[null,null,null,null,null,null,null,null,null,null,null,null,null,null,null,"Odyssey Energy (2009) Ltd.","OE("]
[null,null,null,null,null,null,null,null,null,null,null,null,null,null,null,"Opus International Consultants Ltd (NZ)","OI2"]
[null,null,null,null,null,null,null,null,null,null,null,null,null,null,null,"Opus International Consultants Ltd.","OIC"]
[null,null,null,null,null,null,null,null,null,null,null,null,null,null,null,"Oldfields","OLD"]
[null,null,null,null,null,null,null,null,null,null,null,null,null,null,null,"Porirua City Council","PCC"]
[null,null,null,null,null,null,null,null,null,null,null,null,null,null,null,"Pinnacles Civil Group Ltd.","PCG"]
[null,null,null,null,null,null,null,null,null,null,null,null,null,null,null,"Pope Electrical Ltd","PE2"]
[null,null,null,null,null,null,null,null,null,null,null,null,null,null,null,"Pope Electrical Limited","PEL"]
[null,null,null,null,null,null,null,null,null,null,null,null,null,null,null,"Pavement Management Services","PMS"]
[null,null,null,null,null,null,null,null,null,null,null,null,null,null,null,"Power Solutions Ltd","PSL"]
[null,null,null,null,null,null,null,null,null,null,null,null,null,null,null,"Queenstown-Lakes District Council","QDC"]
[null,null,null,null,null,null,null,null,null,null,null,null,null,null,null,"Quality Roading and Services","QRS"]
[null,null,null,null,null,null,null,null,null,null,null,null,null,null,null,"Read-only access for Tenderers","RAF"]
[null,null,null,null,null,null,null,null,null,null,null,null,null,null,null,"Rangitikei District Council","RDC"]
[null,null,null,null,null,null,null,null,null,null,null,null,null,null,null,"Roadex","RDX"]
[null,null,null,null,null,null,null,null,null,null,null,null,null,null,null,"Roading Logistics Ltd","RLL"]
[null,null,null,null,null,null,null,null,null,null,null,null,null,null,null,"Rationale Ltd","RLT"]
[null,null,null,null,null,null,null,null,null,null,null,null,null,null,null,"Rotorua District Council","ROT"]
[null,null,null,null,null,null,null,null,null,null,null,null,null,null,null,"RAMM Software Limited","RSL"]
[null,null,null,null,null,null,null,null,null,null,null,null,null,null,null,"Road Signs & Traffic Control Equipment Limited","RTL"]
[null,null,null,null,null,null,null,null,null,null,null,null,null,null,null,"Russell Roads","RUS"]
[null,null,null,null,null,null,null,null,null,null,null,null,null,null,null,"Salient Consultants","SAL"]
[null,null,null,null,null,null,null,null,null,null,null,null,null,null,null,"Sealcoat Central Ltd.","SCL"]
[null,null,null,null,null,null,null,null,null,null,null,null,null,null,null,"Shaw's Consulting Services Ltd","SCS"]
[null,null,null,null,null,null,null,null,null,null,null,null,null,null,null,"Southland District Council","SDC"]
[null,null,null,null,null,null,null,null,null,null,null,null,null,null,null,"Signopsys Electronic Signs","SES"]
[null,null,null,null,null,null,null,null,null,null,null,null,null,null,null,"Sicon Ltd.","SL2"]
[null,null,null,null,null,null,null,null,null,null,null,null,null,null,null,"Stantec New Zealand","SN2"]
[null,null,null,null,null,null,null,null,null,null,null,null,null,null,null,"Stantec New Zealand Ltd","SNZ"]
[null,null,null,null,null,null,null,null,null,null,null,null,null,null,null,"SouthRoads Ltd.","SOU"]
[null,null,null,null,null,null,null,null,null,null,null,null,null,null,null,"Safe Roads Alliance","SRA"]
[null,null,null,null,null,null,null,null,null,null,null,null,null,null,null,"Services South East (NZ) Ltd.","SS2"]
[null,null,null,null,null,null,null,null,null,null,null,null,null,null,null,"Services South East Pty Ltd","SSE"]
[null,null,null,null,null,null,null,null,null,null,null,null,null,null,null,"Tonkin & Taylor Ltd","T&T"]
[null,null,null,null,null,null,null,null,null,null,null,null,null,null,null,"Tasman Howey","TAS"]
[null,null,null,null,null,null,null,null,null,null,null,null,null,null,null,"NZTA and WDM","TAW"]
[null,null,null,null,null,null,null,null,null,null,null,null,null,null,null,"Tauranga City Council","TC2"]
[null,null,null,null,null,null,null,null,null,null,null,null,null,null,null,"Taranaki Civil Construction","TCC"]
[null,null,null,null,null,null,null,null,null,null,null,null,null,null,null,"TC Nicholls","TCN"]
[null,null,null,null,null,null,null,null,null,null,null,null,null,null,null,"Traffic Control Systems","TCS"]
[null,null,null,null,null,null,null,null,null,null,null,null,null,null,null,"Taupo District Council","TD2"]
[null,null,null,null,null,null,null,null,null,null,null,null,null,null,null,"Tasman District Council","TDC"]
[null,null,null,null,null,null,null,null,null,null,null,null,null,null,null,"The Datastack Ltd","TDL"]
[null,null,null,null,null,null,null,null,null,null,null,null,null,null,null,"Taupo East Traffic Services Contractor","TET"]
[null,null,null,null,null,null,null,null,null,null,null,null,null,null,null,"Broadspectrum (NZ) Ltd","TFD"]
[null,null,null,null,null,null,null,null,null,null,null,null,null,null,null,"Waka Kotahi NZ Transport Agency","TNZ"]
[null,null,null,null,null,null,null,null,null,null,null,null,null,null,null,"Top Energy","TOP"]
[null,null,null,null,null,null,null,null,null,null,null,null,null,null,null,"The Roading Company","TRC"]
[null,null,null,null,null,null,null,null,null,null,null,null,null,null,null,"Transfield Services (NZ) Ltd","TS("]
[null,null,null,null,null,null,null,null,null,null,null,null,null,null,null,"Tonkin and Taylor Ltd","TT"]
[null,null,null,null,null,null,null,null,null,null,null,null,null,null,null,"Tyco Traffic and Transportation","TYC"]
[null,null,null,null,null,null,null,null,null,null,null,null,null,null,null,"Urban Connection Ltd","UCL"]
[null,null,null,null,null,null,null,null,null,null,null,null,null,null,null,"University of Canterbury","UOC"]
[null,null,null,null,null,null,null,null,null,null,null,null,null,null,null,"Ventia Pty Ltd","VPL"]
[null,null,null,null,null,null,null,null,null,null,null,null,null,null,null,"Western Bay of Plenty District Council","WBO"]
[null,null,null,null,null,null,null,null,null,null,null,null,null,null,null,"Wellington City Council","WCC"]
[null,null,null,null,null,null,null,null,null,null,null,null,null,null,null,"Waimakariri District Council","WD2"]
[null,null,null,null,null,null,null,null,null,null,null,null,null,null,null,"Whakatane District Council","WD3"]
[null,null,null,null,null,null,null,null,null,null,null,null,null,null,null,"Wairoa District Council","WD4"]
[null,null,null,null,null,null,null,null,null,null,null,null,null,null,null,"Waipa District Council","WD5"]
[null,null,null,null,null,null,null,null,null,null,null,null,null,null,null,"Waikato District Council","WD6"]
[null,null,null,null,null,null,null,null,null,null,null,null,null,null,null,"Whangarei District Council","WDC"]
[null,null,null,null,null,null,null,null,null,null,null,null,null,null,null,"WDM","WDM"]
[null,null,null,null,null,null,null,null,null,null,null,null,null,null,null,"WSP-Opus International Consultants Ltd","WIC"]
[null,null,null,null,null,null,null,null,null,null,null,null,null,null,null,"Downer New Zealand Limited","WIL"]
[null,null,null,null,null,null,null,null,null,null,null,null,null,null,null,"W J Ashton Service Ltd","WJA"]
[null,null,null,null,null,null,null,null,null,null,null,null,null,null,null,"Waka Kotahi NZ Transport Agency - Highways","WK2"]
[null,null,null,null,null,null,null,null,null,null,null,null,null,null,null,"Waka Kotahi NZ Transport Agency","WKN"]
[null,null,null,null,null,null,null,null,null,null,null,null,null,null,null,"WSP New Zealand Ltd","WNZ"]